{"text_format":"1","workbook":"xlsx","n_sheets":1,"sheets":["2023-2024"],"not_rendered":{"charts":0,"images":0,"macros":1,"external_links":0,"defined_names":1,"comments":0,"pivot_tables":0},"unopened":[],"bounds":{"document_bytes":16777216,"sheet_cells":100000,"rows_first":2000,"rows_last":500,"rows_between":2000,"halvings":0,"cell_chars":16384,"cell_head_chars":4096},"cells_cut":0,"cells_raw":0,"read":"whole","date_system":"1900"}

{"sheet":"2023-2024","index":0,"n_rows":73,"n_cols":72,"rows_kept":73,"cut":false,"hidden":false,"merged":[[12,35,13,35],[12,36,13,36],[10,22,13,22],[12,26,13,26],[12,25,13,25],[12,24,13,24],[8,0,8,29],[10,39,13,39],[10,11,10,18],[12,15,12,16],[10,19,13,19],[10,20,12,21],[10,38,13,38],[12,13,12,14],[12,11,12,12],[12,37,13,37],[10,34,11,35],[10,36,11,37],[12,34,13,34],[10,1,11,2],[12,2,13,2],[12,1,13,1],[10,0,13,0],[11,15,11,18],[12,17,12,18],[11,7,12,8],[10,3,13,3],[10,4,10,10],[11,6,13,6],[11,5,13,5],[11,4,13,4],[11,9,12,10],[11,11,11,14],[9,57,9,59],[10,52,13,52],[10,43,13,43],[10,44,13,44],[10,45,13,45],[10,46,13,46],[10,49,13,49],[10,50,13,50],[9,49,9,52],[10,61,13,61],[10,62,13,62],[10,29,13,29],[10,27,13,27],[12,23,13,23],[10,40,13,40],[10,41,13,41],[10,30,11,31],[10,32,11,33],[12,30,13,30],[12,31,13,31],[12,32,13,32],[12,33,13,33],[10,25,11,26],[10,23,11,24],[10,28,13,28],[8,43,8,52],[8,57,8,65],[10,63,13,63],[10,64,13,64],[10,65,13,65],[10,51,13,51],[9,43,9,45],[9,46,9,48],[10,47,13,47],[10,48,13,48],[9,63,9,65],[9,60,9,62],[10,57,13,57],[10,58,13,58],[10,59,13,59],[10,60,13,60]]}
[null,null,null,null,null,null,null,null,null,null,null,null,null,null,null,null,null,null,null,null,null,null,null,null,null,null,null,null,null,null,null,null,null,null,null,null,null,null,null,null,null,null,null,null,null,null,null,null,null,null,null,null,null,null,null,null,null,null,null,null,null,null,null,null,null,null,null,null,null,null,"Data","Sarbatoare legala"]
[null,null,null,null,null,null,null,null,null,null,null,null,null,null,null,null,null,null,null,null,null,null,null,null,null,null,null,null,null,null,null,null,null,null,null,null,null,null,null,null,null,null,null,null,null,null,null,null,null,null,null,null,null,null,null,null,null,null,null,null,null,null,null,null,null,null,null,null,null,null,"2023-11-30","Sf Andrei"]
[null,null,null,null,null,null,null,null,null,null,null,null,null,null,null,null,null,null,null,null,null,null,null,null,null,null,null,null,null,null,null,null,null,null,null,null,null,null,null,null,null,null,null,null,null,null,null,null,null,null,null,null,null,null,null,null,null,null,null,null,null,null,null,null,null,null,null,null,null,null,"2023-12-01","Ziua Nationala"]
[null,null,null,null,null,null,null,null,null,null,null,null,null,null,null,null,null,null,null,null,null,null,null,null,null,null,null,null,null,null,null,null,null,null,null,null,null,null,null,null,null,null,null,null,null,null,null,null,null,null,null,null,null,null,null,null,null,null,null,null,null,null,null,null,null,null,null,null,null,null,"2023-12-25","Crăciun prima zi"]
[null,null,null,null,null,null,null,null,null,null,null,null,null,null,null,null,null,null,null,null,null,null,null,null,null,null,null,null,null,null,null,null,null,null,null,null,null,null,null,null,null,null,null,null,null,null,null,null,null,null,null,null,null,null,null,null,null,null,null,null,null,null,null,null,null,null,null,null,null,null,"2023-12-26","Crăciun a doua zi"]
[null,null,null,null,null,null,null,null,null,null,null,null,null,null,null,null,null,null,null,null,null,null,null,null,null,null,null,null,null,null,null,null,null,null,null,null,null,null,null,null,null,null,null,null,null,null,null,null,null,null,null,null,null,null,null,null,null,null,null,null,null,null,null,null,null,null,null,null,null,null,"2024-01-01","Anul Nou prima zi"]
[null,null,null,null,null,null,null,null,null,null,null,null,null,null,null,null,null,null,null,null,null,null,null,null,null,null,null,null,null,null,null,null,null,null,null,null,null,null,null,null,null,null,null,null,null,null,null,null,null,null,null,null,null,null,null,null,null,null,null,null,null,null,null,null,null,null,null,null,null,null,"2024-01-02","Anul Nou a doua zi"]
[null,null,null,null,null,null,null,null,null,null,null,null,null,null,null,null,null,null,null,null,null,null,null,null,null,null,null,null,null,null,null,null,null,null,null,null,null,null,null,null,null,null,null,null,null,null,null,null,null,null,null,null,null,null,"parteneri adiacenti","UR",null,null,null,null,null,null,null,null,null,null,null,"parteneri adiacenti","UR",null,"2024-01-24","Ziua Unirii Principatelor României"]
["EVIDENȚA LIMITĂRILOR ȘI/SAU ÎNTRERUPERILOR PLANIFICATE ȘI NEPLANIFICATE pentru anul gazier 2023 - 2024 / RECORD OF THE PLANNED AND UNPLANNED LIMITATIONS AND/OR INTERRUPTIONS related to the gas year 2023 - 2024",null,null,null,null,null,null,null,null,null,null,null,null,null,null,null,null,null,null,null,null,null,null,null,null,null,null,null,null,null,null,null,null,null,null,null,null,null,null,null,null,null,null,"Lucrari neprogramate",null,null,null,null,null,null,null,null,null,"NU6 ",{"$f":"SUBTOTAL(9,AS:AS)","v":0},{"$f":"SUBTOTAL(9,AV:AV)","v":0},null,"Lucrari programate",null,null,null,null,null,null,null,null,"NU5",{"$f":"SUBTOTAL(9,BG:BG)","v":0},{"$f":"SUBTOTAL(9,BJ:BJ)","v":0},null,"2024-05-01","Ziua muncii"]
[null,null,null,null,null,null,null,null,null,null,null,null,null,null,null,null,null,null,null,null,null,null,null,null,null,null,null,null,null,null,null,null,null,null,null,null,null,null,null,null,null,null,null,"Partener adiacent",null,null,"UR",null,null,null,null,null,null,"NUafectati ",{"$f":"SUBTOTAL(9,AT:AT)","v":0},{"$f":"SUBTOTAL(9,AW:AW)","v":0},null,"Partener adiacent",null,null,"UR",null,null,null,null,null,"NUafectati ",{"$f":"SUBTOTAL(9,BH:BH)","v":0},{"$f":"SUBTOTAL(9,BK:BK)","v":0},null,"2024-05-03","Vinerea Mare"]
["Nr. crt. / Item No.","Tip limitare/întrerupere / \nType of limitation/interruption",null,"Denumire lucrare/motiv limitare și/sau întrerupere / \nName of the works/reason for the limitation and/or interruption ","Locația limitării/întreruperii / Location of the limitation/interruption ",null,null,null,null,null,null,"Punct de ieșire/intrare afectat / Affected exit/entry point",null,null,null,null,null,null,null,"Cod punct relevant / Code of the relevant point","UR/operator de sistem adiacent afectat /\nAffected network user/adjacent system operator",null,"Perioada planificată de execuție a lucrării / Planned period for the execution of the works","Data și ora limitării/întreruperii / Date and hour of the limitation/interruption ",null,"Data și ora reluării prestării serviciului / Date and hour the service supply is resumed",null,"Exploatarea Teritorială / Regional Office","Observații / Comments","Justificarea modificării perioadei planificate de execuție a lucrări","Data și ora efectivă de limitare/întrerupere ",null,"Data și ora efectivă de reluare a prestării serviciului",null,"Data și ora informării UR",null,"Data și ora informării partenerului adiacent",null,"Foaia de manevră","A fost afectat producătorul (în cazul PM) sau consumatorul final (în cazul SM)? \n(DA/NU)","Observatii","Program bugetat",null,"Numar de ore de la producerea intreruperii / limitarii pana la anuntarea partenerului adiacent\n (trebuie sa fie mai mic decat 6)","NU6","NUafectati","Numar de ore de la producerea intreruperii / limitarii pana la anuntarea UR\n (trebuie sa fie mai mic decat 6)","NU6","NUafectati","Durata intreruperii / limitarii [ore]\n(daca este mai mare de 24, trebuie sa fie completata celula aferenta de pe coloana AZ)","NU24","Nuafectati","Partener adiacent informat din 12 in 12 ore, daca durata mai mare de 24h\n(DA/NU)","NU6 ",{"$f":"BC9+BD9","v":0},"IP51",null,"Numar de zile lucratoare de anuntare partener adiacent pana la limitare / intrerupere (trebuie sa fie mai mare de 5)","NU5","NUafectati","Numar de zile de anuntare UR pana la limitare / intrerupere \n(trebuie sa fie mai mare de 5)","NU5","NUafectati","Numar ore intre data anuntata si cea efectiva de reluare\n(trebuie sa fie mai mic sau egal cu 0)","NUreluate","NUafectati","NU5",{"$f":"BP9+BQ9","v":0},"IP61",null,"2024-05-06","A doua zi de Paste Ortodox"]
[null,null,null,null,"Siruta / Siruta code","Localitate / Locality","Județ / County","Coordonate GPS început / GPS coordinates-beginning",null,"Coordonate GPS sfârșit / GPS coordinates-end",null,"Puncte de ieșire din SNT / NTS exit points",null,null,null,"Puncte de intrare în SNT / NTS entry points ",null,null,null,null,null,null,null,null,null,null,null,null,null,null,null,null,null,null,null,null,null,null,null,null,null,null,null,null,null,null,null,null,null,null,null,null,null,"NUafectati ",{"$f":"BC10+BD10","v":0},{"$f":"IF(BC12=0,1,BC11/BC12)","v":1},null,null,null,null,null,null,null,null,null,null,"NUafectati ",{"$f":"BP10+BQ10","v":0},{"$f":"IF(BP12=0,1,BP11/BP12)","v":1},null,"2024-06-24","A doua zi de Rusalii"]
[null,"neplanificată / unplanned","planificată / planned",null,null,null,null,null,null,null,null,"Limitare / Limitation",null,"Întrerupere / Interruption",null,"Limitare / Limitation",null,"Întrerupere / Interruption",null,null,null,null,null,"Data / Date","Ora / Hour","Data / Date","Ora / Hour",null,null,null,"Data","Ora","Data","Ora","Data","Ora","Data","Ora",null,null,null,null,null,null,null,null,null,null,null,null,null,null,null,"NU24",{"$f":"SUBTOTAL(9,AY:AY)","v":0},"IP52",null,null,null,null,null,null,null,null,null,null,"NUreluare",{"$f":"SUBTOTAL(9,BM:BM)","v":0},"IP62",null,"2024-08-15","Adormirea Maicii Domnului"]
[null,null,null,null,null,null,null,"X1","Y1","X2","Y2","Cod / Code","Denumire / Name","Cod / Code","Denumire / Name","Cod / Code","Denumire / Name","Cod / Code","Denumire / Name",null,"UR / Network user","Operator de sistem adiacent / Adjacent system operator",null,null,null,null,null,null,null,null,null,null,null,null,null,null,null,null,null,null,null,null,null,null,null,null,null,null,null,null,null,null,null,"NUafectati",{"$f":"SUBTOTAL(9,AZ:AZ)","v":0},{"$f":"IF(BC14=0,1,BC13/BC14)","v":1},null,null,null,null,null,null,null,null,null,null,"NUafectati",{"$f":"SUBTOTAL(9,BN:BN)","v":0},{"$f":"IF(BP14=0,1,BP13/BP14)","v":1}]
[0,1,2,3,4,5,6,7,8,9,10,11,12,13,14,15,16,17,18,19,20,21,22,23,24,25,26,27,28,29,30,31,32,33,34,35,36,37,38,39,40,41]
[1,"-","x","Reabilitare conductă DN700 Bățani - Onești, Etapa 1- pregătirea conductei pentru transformarea în conductă godevilabilă",86197,"Tușnad","Harghita",566491.56999999995,515633.51,566491.56999999995,515633.51,"-","-","SM0397D0","Tușnad","-","-","-","-","SM-SD001",null,"Delgaz Grid","iunie - septembrie 2024",null,null,null,null,"Brașov",null,null,null,null,null,null,null,null,null,null,null,null,null,"PLRRM 2023-2025\nAnexa1_II_B1",null,{"$f":"IF(B16=\"X\",IF(AN16=\"\",\"Afectat sau NU?\",IF(AN16=\"DA\",IF(((AK16+AL16)-(AE16+AF16))*24<-720,\"Neinformat\",((AK16+AL16)-(AE16+AF16))*24),\"Nu a fost afectat producator/consumator\")),\"\")","v":""},{"$f":"IF(B16=\"X\",IF(AN16=\"DA\",IF(AR16<6,LEN(TRIM(V16))-LEN(SUBSTITUTE(V16,CHAR(44),\"\"))+1,0),\"-\"),\"\")","v":""},{"$f":"IF(B16=\"X\",IF(AN16=\"DA\",LEN(TRIM(V16))-LEN(SUBSTITUTE(V16,CHAR(44),\"\"))+1,\"-\"),\"\")","v":""},{"$f":"IF(B16=\"X\",IF(AN16=\"\",\"Afectat sau NU?\",IF(AN16=\"DA\",IF(((AI16+AJ16)-(AE16+AF16))*24<-720,\"Neinformat\",((AI16+AJ16)-(AE16+AF16))*24),\"Nu a fost afectat producator/consumator\")),\"\")","v":""},{"$f":"IF(B16=\"X\",IF(AN16=\"DA\",IF(AU16<6,LEN(TRIM(U16))-LEN(SUBSTITUTE(U16,CHAR(44),\"\"))+1,0),\"-\"),\"\")","v":""},{"$f":"IF(B16=\"X\",IF(AN16=\"DA\",LEN(TRIM(U16))-LEN(SUBSTITUTE(U16,CHAR(44),\"\"))+1,\"-\"),\"\")","v":""},{"$f":"IF(B16=\"X\",IF(AN16=\"\",\"Afectat sau NU?\",IF(AN16=\"DA\",((AG16+AH16)-(AE16+AF16))*24,\"Nu a fost afectat producator/consumator\")),\"\")","v":""},{"$f":"IF(B16=\"X\",IF(AN16=\"DA\",IF(AX16>24,IF(BA16=\"NU\",0,LEN(TRIM(V16))-LEN(SUBSTITUTE(V16,CHAR(44),\"\"))+1),0),\"-\"),\"\")","v":""},{"$f":"IF(B16=\"X\",IF(AN16=\"DA\",IF(AX16>24,LEN(TRIM(V16))-LEN(SUBSTITUTE(V16,CHAR(44),\"\"))+1,0),\"-\"),\"\")","v":""},null,null,null,null,null,{"$f":"IF(C16=\"X\",IF(AN16=\"\",\"Afectat sau NU?\",IF(AN16=\"DA\",IF(AK16=\"\",\"Neinformat\",NETWORKDAYS(AK16+AL16,AE16+AF16,$BS$2:$BS$14)-2),\"Nu a fost afectat producator/consumator\")),\"\")","v":"Afectat sau NU?"},{"$f":"IF(C16=\"X\",IF(AN16=\"DA\",IF(AND(BF16>=5,AK16<>\"\"),LEN(TRIM(V16))-LEN(SUBSTITUTE(V16,CHAR(44),\"\"))+1,0),\"-\"),\"\")","v":"-"},{"$f":"IF(C16=\"X\",IF(AN16=\"DA\",LEN(TRIM(V16))-LEN(SUBSTITUTE(V16,CHAR(44),\"\"))+1,\"-\"),\"\")","v":"-"},{"$f":"IF(C16=\"X\",IF(AN16=\"\",\"Afectat sau NU?\",IF(AN16=\"DA\",IF(AI16=\"\",\"Neinformat\",NETWORKDAYS(AI16+AJ16,AE16+AF16,$BS$2:$BS$14)-2),\"Nu a fost afectat producator/consumator\")),\"\")","v":"Afectat sau NU?"},{"$f":"IF(C16=\"X\",IF(AN16=\"DA\",IF(AND(BI16>=5,AI16<>\"\"),LEN(TRIM(U16))-LEN(SUBSTITUTE(U16,CHAR(44),\"\"))+1,0),\"-\"),\"\")","v":"-"},{"$f":"IF(C16=\"X\",IF(AN16=\"DA\",LEN(TRIM(U16))-LEN(SUBSTITUTE(U16,CHAR(44),\"\"))+1,\"-\"),\"\")","v":"-"},{"$f":"IF(C16=\"X\",IF(AN16=\"\",\"Afectat sau NU?\",IF(AN16=\"DA\",((AG16+AH16)-(Z16+AA16))*24,\"Nu a fost afectat producator/consumator\")),\"\")","v":"Afectat sau NU?"},{"$f":"IF(C16=\"X\",IF(AN16<>\"DA\",\"-\",IF(AND(AN16=\"DA\",BL16<=0),LEN(TRIM(V16))-LEN(SUBSTITUTE(V16,CHAR(44),\"\"))+1+LEN(TRIM(U16))-LEN(SUBSTITUTE(U16,CHAR(44),\"\"))+1,0)),\"\")","v":"-"},{"$f":"IF(C16=\"X\",IF(AN16=\"DA\",LEN(TRIM(V16))-LEN(SUBSTITUTE(V16,CHAR(44),\"\"))+1+LEN(TRIM(U16))-LEN(SUBSTITUTE(U16,CHAR(44),\"\"))+1,\"-\"),\"\")","v":"-"}]
[2,"-","x","Reabilitare conductă DN700 Bățani - Onești, Etapa 1- pregătirea conductei pentru transformarea în conductă godevilabilă",64880,"Turia","Covasna",574240.05000000005,512562.4,574240.05000000005,512562.4,"-","-","SM0398D0","SC Prod Dărăguș Turia Balvanyos","-","-","-","-","SM-CF001",null,"Dărăguș SRL","iunie - septembrie 2024",null,null,null,null,"Brașov",null,null,null,null,null,null,null,null,null,null,null,null,null,"PLRRM 2023-2025\nAnexa1_II_B1",null,"","","","","","","","","",null,null,null,null,null,"Afectat sau NU?","-","-","Afectat sau NU?","-","-","Afectat sau NU?","-","-"]
[{"$f":"A17+1","v":3},"-","x","Reabilitare conductă DN700 Bățani - Onești, Etapa 1- pregătirea conductei pentru transformarea în conductă godevilabilă",64470,"Lemnia","Covasna",597464.44999999995,506826.16,597464.44999999995,506826.16,"-","-","SM0407D0","Lemnia","-","-","-","-","SM-SD001",null,"Distrigaz Sud Rețele","iunie - septembrie 2024",null,null,null,null,"Brașov",null,null,null,null,null,null,null,null,null,null,null,null,null,"PLRRM 2023-2025\nAnexa1_II_B1",null,"","","","","","","","","",null,null,null,null,null,"Afectat sau NU?","-","-","Afectat sau NU?","-","-","Afectat sau NU?","-","-"]
[{"$f":"A18+1","v":4},"-","x","Reabilitare conductă DN700 Bățani - Onești, Etapa 1- pregătirea conductei pentru transformarea în conductă godevilabilă",23804,"Oituz","Bacău",622831.62,524130.32,622831.62,524130.32,"-","-","SM0386D0","Oituz","-","-","-","-","SM-SD001",null,"Delgaz Grid","iunie - septembrie 2024",null,null,null,null,"Brașov",null,null,null,null,null,null,null,null,null,null,null,null,null,"PLRRM 2023-2025\nAnexa1_II_B1",null,"","","","","","","","","",null,null,null,null,null,"Afectat sau NU?","-","-","Afectat sau NU?","-","-","Afectat sau NU?","-","-"]
[5,"-","x","Reabilitare conductă DN700 Bățani - Onești, Etapa 1- pregătirea conductei pentru transformarea în conductă godevilabilă",23804,"Oituz","Bacău",623001.97,524169.25,623001.97,524169.25,"-","-","SM0387D0","SC Pa&Co Internațional Oituz","-","-","-","-","SM-CF001",null,"Pa&Co International","iunie - septembrie 2024",null,null,null,null,"Brașov",null,null,null,null,null,null,null,null,null,null,null,null,null,"PLRRM 2023-2025\nAnexa1_II_B1",null,"","","","","","","","","",null,null,null,null,null,"Afectat sau NU?","-","-","Afectat sau NU?","-","-","Afectat sau NU?","-","-"]
[6,"-","x","Reabilitare conductă DN700 Bățani - Onești, Etapa 1- pregătirea conductei pentru transformarea în conductă godevilabilă",23804,"Oituz","Bacău",624041.5,524592.28,624041.5,524592.28,"-","-","SM0909D0","Pa&Co Internațional OItuz locuință","-","-","-","-","SM-CF001",null,"Pa&Co International","iunie - septembrie 2024",null,null,null,null,"Brașov",null,null,null,null,null,null,null,null,null,null,null,null,null,"PLRRM 2023-2025\nAnexa1_II_B1",null,"","","","","","","","","",null,null,null,null,null,"Afectat sau NU?","-","-","Afectat sau NU?","-","-","Afectat sau NU?","-","-"]
[7,"-","x","Reabilitare conductă DN700 Bățani - Onești, Etapa 1- pregătirea conductei pentru transformarea în conductă godevilabilă",22585,"Filipești","Bacău",632633.77,526820.43999999994,632633.77,526820.43999999994,"-","-","SM0128D0","SC Fabrica de pâine Șerban Filipești","-","-","-","-","SM-CF001",null,"Fabrica de pâine Șerban","iunie - septembrie 2024",null,null,null,null,"Brașov",null,null,null,null,null,null,null,null,null,null,null,null,null,"PLRRM 2023-2025\nAnexa1_II_B1",null,"","","","","","","","","",null,null,null,null,null,"Afectat sau NU?","-","-","Afectat sau NU?","-","-","Afectat sau NU?","-","-"]
[8,"-","x","Pregătire conductă DN 500 Munteni - Bârlad pentru transformare în conductă godevilabilă",166538,"Tutova","Vaslui",697349.73,516890.65,697349.73,516890.65,"-","-","SM1151D0","Tutova","-","-","-","-","SM-SD001",null,"Gaz Est","iulie - septembrie 2024",null,null,null,null,"Brăila",null,null,null,null,null,null,null,null,null,null,null,null,null,"PLRRM 2023-2025\nAnexa1_II_B3",null,{"$f":"IF(B23=\"X\",IF(AN23=\"\",\"Afectat sau NU?\",IF(AN23=\"DA\",IF(((AK23+AL23)-(AE23+AF23))*24<-720,\"Neinformat\",((AK23+AL23)-(AE23+AF23))*24),\"Nu a fost afectat producator/consumator\")),\"\")","v":""},{"$f":"IF(B23=\"X\",IF(AN23=\"DA\",IF(AR23<6,LEN(TRIM(V23))-LEN(SUBSTITUTE(V23,CHAR(44),\"\"))+1,0),\"-\"),\"\")","v":""},{"$f":"IF(B23=\"X\",IF(AN23=\"DA\",LEN(TRIM(V23))-LEN(SUBSTITUTE(V23,CHAR(44),\"\"))+1,\"-\"),\"\")","v":""},{"$f":"IF(B23=\"X\",IF(AN23=\"\",\"Afectat sau NU?\",IF(AN23=\"DA\",IF(((AI23+AJ23)-(AE23+AF23))*24<-720,\"Neinformat\",((AI23+AJ23)-(AE23+AF23))*24),\"Nu a fost afectat producator/consumator\")),\"\")","v":""},{"$f":"IF(B23=\"X\",IF(AN23=\"DA\",IF(AU23<6,LEN(TRIM(U23))-LEN(SUBSTITUTE(U23,CHAR(44),\"\"))+1,0),\"-\"),\"\")","v":""},{"$f":"IF(B23=\"X\",IF(AN23=\"DA\",LEN(TRIM(U23))-LEN(SUBSTITUTE(U23,CHAR(44),\"\"))+1,\"-\"),\"\")","v":""},{"$f":"IF(B23=\"X\",IF(AN23=\"\",\"Afectat sau NU?\",IF(AN23=\"DA\",((AG23+AH23)-(AE23+AF23))*24,\"Nu a fost afectat producator/consumator\")),\"\")","v":""},{"$f":"IF(B23=\"X\",IF(AN23=\"DA\",IF(AX23>24,IF(BA23=\"NU\",0,LEN(TRIM(V23))-LEN(SUBSTITUTE(V23,CHAR(44),\"\"))+1),0),\"-\"),\"\")","v":""},{"$f":"IF(B23=\"X\",IF(AN23=\"DA\",IF(AX23>24,LEN(TRIM(V23))-LEN(SUBSTITUTE(V23,CHAR(44),\"\"))+1,0),\"-\"),\"\")","v":""},null,null,null,null,null,"Afectat sau NU?",{"$f":"IF(C23=\"X\",IF(AN23=\"DA\",IF(AND(BF23>=5,AK23<>\"\"),LEN(TRIM(V23))-LEN(SUBSTITUTE(V23,CHAR(44),\"\"))+1,0),\"-\"),\"\")","v":"-"},{"$f":"IF(C23=\"X\",IF(AN23=\"DA\",LEN(TRIM(V23))-LEN(SUBSTITUTE(V23,CHAR(44),\"\"))+1,\"-\"),\"\")","v":"-"},"Afectat sau NU?",{"$f":"IF(C23=\"X\",IF(AN23=\"DA\",IF(AND(BI23>=5,AI23<>\"\"),LEN(TRIM(U23))-LEN(SUBSTITUTE(U23,CHAR(44),\"\"))+1,0),\"-\"),\"\")","v":"-"},{"$f":"IF(C23=\"X\",IF(AN23=\"DA\",LEN(TRIM(U23))-LEN(SUBSTITUTE(U23,CHAR(44),\"\"))+1,\"-\"),\"\")","v":"-"},{"$f":"IF(C23=\"X\",IF(AN23=\"\",\"Afectat sau NU?\",IF(AN23=\"DA\",((AG23+AH23)-(Z23+AA23))*24,\"Nu a fost afectat producator/consumator\")),\"\")","v":"Afectat sau NU?"},{"$f":"IF(C23=\"X\",IF(AN23<>\"DA\",\"-\",IF(AND(AN23=\"DA\",BL23<=0),LEN(TRIM(V23))-LEN(SUBSTITUTE(V23,CHAR(44),\"\"))+1+LEN(TRIM(U23))-LEN(SUBSTITUTE(U23,CHAR(44),\"\"))+1,0)),\"\")","v":"-"},{"$f":"IF(C23=\"X\",IF(AN23=\"DA\",LEN(TRIM(V23))-LEN(SUBSTITUTE(V23,CHAR(44),\"\"))+1+LEN(TRIM(U23))-LEN(SUBSTITUTE(U23,CHAR(44),\"\"))+1,\"-\"),\"\")","v":"-"}]
[9,"-","x","Pregătire conductă DN 500 Munteni - Bârlad pentru transformare în conductă godevilabilă",75828,"Buciumeni","Galați",677419.66,506159.21,677419.66,506159.21,"-","-","SM0515D0","Buciumeni Mănăstire","-","-","-","-","SM-SD001",null,"Distrigaz Sud Rețele","iulie - septembrie 2024",null,null,null,null,"Brăila",null,null,null,null,null,null,null,null,null,null,null,null,null,"PLRRM 2023-2025\nAnexa1_II_B3",null,{"$f":"IF(B24=\"X\",IF(AN24=\"\",\"Afectat sau NU?\",IF(AN24=\"DA\",IF(((AK24+AL24)-(AE24+AF24))*24<-720,\"Neinformat\",((AK24+AL24)-(AE24+AF24))*24),\"Nu a fost afectat producator/consumator\")),\"\")","v":""},{"$f":"IF(B24=\"X\",IF(AN24=\"DA\",IF(AR24<6,LEN(TRIM(V24))-LEN(SUBSTITUTE(V24,CHAR(44),\"\"))+1,0),\"-\"),\"\")","v":""},{"$f":"IF(B24=\"X\",IF(AN24=\"DA\",LEN(TRIM(V24))-LEN(SUBSTITUTE(V24,CHAR(44),\"\"))+1,\"-\"),\"\")","v":""},{"$f":"IF(B24=\"X\",IF(AN24=\"\",\"Afectat sau NU?\",IF(AN24=\"DA\",IF(((AI24+AJ24)-(AE24+AF24))*24<-720,\"Neinformat\",((AI24+AJ24)-(AE24+AF24))*24),\"Nu a fost afectat producator/consumator\")),\"\")","v":""},{"$f":"IF(B24=\"X\",IF(AN24=\"DA\",IF(AU24<6,LEN(TRIM(U24))-LEN(SUBSTITUTE(U24,CHAR(44),\"\"))+1,0),\"-\"),\"\")","v":""},{"$f":"IF(B24=\"X\",IF(AN24=\"DA\",LEN(TRIM(U24))-LEN(SUBSTITUTE(U24,CHAR(44),\"\"))+1,\"-\"),\"\")","v":""},{"$f":"IF(B24=\"X\",IF(AN24=\"\",\"Afectat sau NU?\",IF(AN24=\"DA\",((AG24+AH24)-(AE24+AF24))*24,\"Nu a fost afectat producator/consumator\")),\"\")","v":""},{"$f":"IF(B24=\"X\",IF(AN24=\"DA\",IF(AX24>24,IF(BA24=\"NU\",0,LEN(TRIM(V24))-LEN(SUBSTITUTE(V24,CHAR(44),\"\"))+1),0),\"-\"),\"\")","v":""},{"$f":"IF(B24=\"X\",IF(AN24=\"DA\",IF(AX24>24,LEN(TRIM(V24))-LEN(SUBSTITUTE(V24,CHAR(44),\"\"))+1,0),\"-\"),\"\")","v":""},null,null,null,null,null,"Afectat sau NU?",{"$f":"IF(C24=\"X\",IF(AN24=\"DA\",IF(AND(BF24>=5,AK24<>\"\"),LEN(TRIM(V24))-LEN(SUBSTITUTE(V24,CHAR(44),\"\"))+1,0),\"-\"),\"\")","v":"-"},{"$f":"IF(C24=\"X\",IF(AN24=\"DA\",LEN(TRIM(V24))-LEN(SUBSTITUTE(V24,CHAR(44),\"\"))+1,\"-\"),\"\")","v":"-"},"Afectat sau NU?",{"$f":"IF(C24=\"X\",IF(AN24=\"DA\",IF(AND(BI24>=5,AI24<>\"\"),LEN(TRIM(U24))-LEN(SUBSTITUTE(U24,CHAR(44),\"\"))+1,0),\"-\"),\"\")","v":"-"},{"$f":"IF(C24=\"X\",IF(AN24=\"DA\",LEN(TRIM(U24))-LEN(SUBSTITUTE(U24,CHAR(44),\"\"))+1,\"-\"),\"\")","v":"-"},{"$f":"IF(C24=\"X\",IF(AN24=\"\",\"Afectat sau NU?\",IF(AN24=\"DA\",((AG24+AH24)-(Z24+AA24))*24,\"Nu a fost afectat producator/consumator\")),\"\")","v":"Afectat sau NU?"},{"$f":"IF(C24=\"X\",IF(AN24<>\"DA\",\"-\",IF(AND(AN24=\"DA\",BL24<=0),LEN(TRIM(V24))-LEN(SUBSTITUTE(V24,CHAR(44),\"\"))+1+LEN(TRIM(U24))-LEN(SUBSTITUTE(U24,CHAR(44),\"\"))+1,0)),\"\")","v":"-"},{"$f":"IF(C24=\"X\",IF(AN24=\"DA\",LEN(TRIM(V24))-LEN(SUBSTITUTE(V24,CHAR(44),\"\"))+1+LEN(TRIM(U24))-LEN(SUBSTITUTE(U24,CHAR(44),\"\"))+1,\"-\"),\"\")","v":"-"}]
[10,"-","x","Reabilitare conductă DN 500 Coroi - Ungheni, etapa I - pregătirea conductei pentru transformare în conductă godevilabilă",117952,"Corunca","Mureș",470037.27,557385.32999999996,470037.27,557385.32999999996,"-","-","-","-","-","-","PM0177","Mureș SU P9","PM-PP001",null,"Romgaz","iunie - septembrie 2024",null,null,null,null,"Mediaș",null,null,null,null,null,null,null,null,null,null,null,null,null,"PLRRM 2023-2025\nAnexa1_II_B7",null,"","","","","","","","","",null,null,null,null,null,"Afectat sau NU?","-","-","Afectat sau NU?","-","-","Afectat sau NU?","-","-"]
[11,"-","x","Reabilitare conductă DN 500 Coroi - Ungheni, etapa I - pregătirea conductei pentru transformare în conductă godevilabilă",116199,"Coroi","Mureș",470200.08,545077.49,470200.08,545077.49,"-","-","SM0689D0","Coroi","-","-","-","-","SM-SD001",null,"Delgaz Grid","iunie - septembrie 2024",null,null,null,null,"Mediaș",null,null,null,null,null,null,null,null,null,null,null,null,null,"PLRRM 2023-2025\nAnexa1_II_B7",null,"","","","","","","","","",null,null,null,null,null,"Afectat sau NU?","-","-","Afectat sau NU?","-","-","Afectat sau NU?","-","-"]
[12,"-","x","Pregătire conductă de transport gaze naturale DN 700 Seleuș - Cristur - Bățani în vederea transformării în conductă godevilabilă - etapa 2B (jud. Harghita)",85591,"Secuieni HG","Harghita",498017.44,528594.77,498017.44,528594.77,"-","-","SM0374D0","Secuieni I HG","-","-","-","-","SM-SD001",null,"Hargaz","aptilie - septembrie 2024",null,null,null,null,"Brașov",null,null,null,null,null,null,null,null,null,null,null,null,null,"PLRRM 2023-2025\nAnexa1_II_B10",null,{"$f":"IF(B27=\"X\",IF(AN27=\"\",\"Afectat sau NU?\",IF(AN27=\"DA\",IF(((AK27+AL27)-(AE27+AF27))*24<-720,\"Neinformat\",((AK27+AL27)-(AE27+AF27))*24),\"Nu a fost afectat producator/consumator\")),\"\")","v":""},{"$f":"IF(B27=\"X\",IF(AN27=\"DA\",IF(AR27<6,LEN(TRIM(V27))-LEN(SUBSTITUTE(V27,CHAR(44),\"\"))+1,0),\"-\"),\"\")","v":""},{"$f":"IF(B27=\"X\",IF(AN27=\"DA\",LEN(TRIM(V27))-LEN(SUBSTITUTE(V27,CHAR(44),\"\"))+1,\"-\"),\"\")","v":""},{"$f":"IF(B27=\"X\",IF(AN27=\"\",\"Afectat sau NU?\",IF(AN27=\"DA\",IF(((AI27+AJ27)-(AE27+AF27))*24<-720,\"Neinformat\",((AI27+AJ27)-(AE27+AF27))*24),\"Nu a fost afectat producator/consumator\")),\"\")","v":""},{"$f":"IF(B27=\"X\",IF(AN27=\"DA\",IF(AU27<6,LEN(TRIM(U27))-LEN(SUBSTITUTE(U27,CHAR(44),\"\"))+1,0),\"-\"),\"\")","v":""},{"$f":"IF(B27=\"X\",IF(AN27=\"DA\",LEN(TRIM(U27))-LEN(SUBSTITUTE(U27,CHAR(44),\"\"))+1,\"-\"),\"\")","v":""},{"$f":"IF(B27=\"X\",IF(AN27=\"\",\"Afectat sau NU?\",IF(AN27=\"DA\",((AG27+AH27)-(AE27+AF27))*24,\"Nu a fost afectat producator/consumator\")),\"\")","v":""},{"$f":"IF(B27=\"X\",IF(AN27=\"DA\",IF(AX27>24,IF(BA27=\"NU\",0,LEN(TRIM(V27))-LEN(SUBSTITUTE(V27,CHAR(44),\"\"))+1),0),\"-\"),\"\")","v":""},{"$f":"IF(B27=\"X\",IF(AN27=\"DA\",IF(AX27>24,LEN(TRIM(V27))-LEN(SUBSTITUTE(V27,CHAR(44),\"\"))+1,0),\"-\"),\"\")","v":""},null,null,null,null,null,"Afectat sau NU?",{"$f":"IF(C27=\"X\",IF(AN27=\"DA\",IF(AND(BF27>=5,AK27<>\"\"),LEN(TRIM(V27))-LEN(SUBSTITUTE(V27,CHAR(44),\"\"))+1,0),\"-\"),\"\")","v":"-"},{"$f":"IF(C27=\"X\",IF(AN27=\"DA\",LEN(TRIM(V27))-LEN(SUBSTITUTE(V27,CHAR(44),\"\"))+1,\"-\"),\"\")","v":"-"},"Afectat sau NU?",{"$f":"IF(C27=\"X\",IF(AN27=\"DA\",IF(AND(BI27>=5,AI27<>\"\"),LEN(TRIM(U27))-LEN(SUBSTITUTE(U27,CHAR(44),\"\"))+1,0),\"-\"),\"\")","v":"-"},{"$f":"IF(C27=\"X\",IF(AN27=\"DA\",LEN(TRIM(U27))-LEN(SUBSTITUTE(U27,CHAR(44),\"\"))+1,\"-\"),\"\")","v":"-"},{"$f":"IF(C27=\"X\",IF(AN27=\"\",\"Afectat sau NU?\",IF(AN27=\"DA\",((AG27+AH27)-(Z27+AA27))*24,\"Nu a fost afectat producator/consumator\")),\"\")","v":"Afectat sau NU?"},{"$f":"IF(C27=\"X\",IF(AN27<>\"DA\",\"-\",IF(AND(AN27=\"DA\",BL27<=0),LEN(TRIM(V27))-LEN(SUBSTITUTE(V27,CHAR(44),\"\"))+1+LEN(TRIM(U27))-LEN(SUBSTITUTE(U27,CHAR(44),\"\"))+1,0)),\"\")","v":"-"},{"$f":"IF(C27=\"X\",IF(AN27=\"DA\",LEN(TRIM(V27))-LEN(SUBSTITUTE(V27,CHAR(44),\"\"))+1+LEN(TRIM(U27))-LEN(SUBSTITUTE(U27,CHAR(44),\"\"))+1,\"-\"),\"\")","v":"-"}]
[13,"-","x","Pregătire conductă de transport gaze naturale DN 700 Seleuș - Cristur - Bățani în vederea transformării în conductă godevilabilă - etapa 2B (jud. Harghita)",85591,"Secuieni HG","Harghita",498017.44,528594.77,498017.44,528594.77,"-","-","SM0374D1","Secuieni II HG","-","-","-","-","SM-SD001",null,"Hargaz","aptilie - septembrie 2024",null,null,null,null,"Brașov",null,null,null,null,null,null,null,null,null,null,null,null,null,"PLRRM 2023-2025\nAnexa1_II_B10",null,{"$f":"IF(B28=\"X\",IF(AN28=\"\",\"Afectat sau NU?\",IF(AN28=\"DA\",IF(((AK28+AL28)-(AE28+AF28))*24<-720,\"Neinformat\",((AK28+AL28)-(AE28+AF28))*24),\"Nu a fost afectat producator/consumator\")),\"\")","v":""},{"$f":"IF(B28=\"X\",IF(AN28=\"DA\",IF(AR28<6,LEN(TRIM(V28))-LEN(SUBSTITUTE(V28,CHAR(44),\"\"))+1,0),\"-\"),\"\")","v":""},{"$f":"IF(B28=\"X\",IF(AN28=\"DA\",LEN(TRIM(V28))-LEN(SUBSTITUTE(V28,CHAR(44),\"\"))+1,\"-\"),\"\")","v":""},{"$f":"IF(B28=\"X\",IF(AN28=\"\",\"Afectat sau NU?\",IF(AN28=\"DA\",IF(((AI28+AJ28)-(AE28+AF28))*24<-720,\"Neinformat\",((AI28+AJ28)-(AE28+AF28))*24),\"Nu a fost afectat producator/consumator\")),\"\")","v":""},{"$f":"IF(B28=\"X\",IF(AN28=\"DA\",IF(AU28<6,LEN(TRIM(U28))-LEN(SUBSTITUTE(U28,CHAR(44),\"\"))+1,0),\"-\"),\"\")","v":""},{"$f":"IF(B28=\"X\",IF(AN28=\"DA\",LEN(TRIM(U28))-LEN(SUBSTITUTE(U28,CHAR(44),\"\"))+1,\"-\"),\"\")","v":""},{"$f":"IF(B28=\"X\",IF(AN28=\"\",\"Afectat sau NU?\",IF(AN28=\"DA\",((AG28+AH28)-(AE28+AF28))*24,\"Nu a fost afectat producator/consumator\")),\"\")","v":""},{"$f":"IF(B28=\"X\",IF(AN28=\"DA\",IF(AX28>24,IF(BA28=\"NU\",0,LEN(TRIM(V28))-LEN(SUBSTITUTE(V28,CHAR(44),\"\"))+1),0),\"-\"),\"\")","v":""},{"$f":"IF(B28=\"X\",IF(AN28=\"DA\",IF(AX28>24,LEN(TRIM(V28))-LEN(SUBSTITUTE(V28,CHAR(44),\"\"))+1,0),\"-\"),\"\")","v":""},null,null,null,null,null,"Afectat sau NU?",{"$f":"IF(C28=\"X\",IF(AN28=\"DA\",IF(AND(BF28>=5,AK28<>\"\"),LEN(TRIM(V28))-LEN(SUBSTITUTE(V28,CHAR(44),\"\"))+1,0),\"-\"),\"\")","v":"-"},{"$f":"IF(C28=\"X\",IF(AN28=\"DA\",LEN(TRIM(V28))-LEN(SUBSTITUTE(V28,CHAR(44),\"\"))+1,\"-\"),\"\")","v":"-"},"Afectat sau NU?",{"$f":"IF(C28=\"X\",IF(AN28=\"DA\",IF(AND(BI28>=5,AI28<>\"\"),LEN(TRIM(U28))-LEN(SUBSTITUTE(U28,CHAR(44),\"\"))+1,0),\"-\"),\"\")","v":"-"},{"$f":"IF(C28=\"X\",IF(AN28=\"DA\",LEN(TRIM(U28))-LEN(SUBSTITUTE(U28,CHAR(44),\"\"))+1,\"-\"),\"\")","v":"-"},{"$f":"IF(C28=\"X\",IF(AN28=\"\",\"Afectat sau NU?\",IF(AN28=\"DA\",((AG28+AH28)-(Z28+AA28))*24,\"Nu a fost afectat producator/consumator\")),\"\")","v":"Afectat sau NU?"},{"$f":"IF(C28=\"X\",IF(AN28<>\"DA\",\"-\",IF(AND(AN28=\"DA\",BL28<=0),LEN(TRIM(V28))-LEN(SUBSTITUTE(V28,CHAR(44),\"\"))+1+LEN(TRIM(U28))-LEN(SUBSTITUTE(U28,CHAR(44),\"\"))+1,0)),\"\")","v":"-"},{"$f":"IF(C28=\"X\",IF(AN28=\"DA\",LEN(TRIM(V28))-LEN(SUBSTITUTE(V28,CHAR(44),\"\"))+1+LEN(TRIM(U28))-LEN(SUBSTITUTE(U28,CHAR(44),\"\"))+1,\"-\"),\"\")","v":"-"}]
[14,"-","x","Pregătire conductă de transport gaze naturale DN 700 Seleuș - Cristur - Bățani în vederea transformării în conductă godevilabilă - etapa 2B (jud. Harghita)",83534,"Cristuru Secuiesc","Harghita",502768.61,530742.38,502768.61,530742.38,"-","-","SM0373D0","Cristuru Secuiesc","-","-","-","-","SM-SD001",null,"Delgaz Grid","aptilie - septembrie 2024",null,null,null,null,"Brașov",null,null,null,null,null,null,null,null,null,null,null,null,null,"PLRRM 2023-2025\nAnexa1_II_B10",null,{"$f":"IF(B29=\"X\",IF(AN29=\"\",\"Afectat sau NU?\",IF(AN29=\"DA\",IF(((AK29+AL29)-(AE29+AF29))*24<-720,\"Neinformat\",((AK29+AL29)-(AE29+AF29))*24),\"Nu a fost afectat producator/consumator\")),\"\")","v":""},{"$f":"IF(B29=\"X\",IF(AN29=\"DA\",IF(AR29<6,LEN(TRIM(V29))-LEN(SUBSTITUTE(V29,CHAR(44),\"\"))+1,0),\"-\"),\"\")","v":""},{"$f":"IF(B29=\"X\",IF(AN29=\"DA\",LEN(TRIM(V29))-LEN(SUBSTITUTE(V29,CHAR(44),\"\"))+1,\"-\"),\"\")","v":""},{"$f":"IF(B29=\"X\",IF(AN29=\"\",\"Afectat sau NU?\",IF(AN29=\"DA\",IF(((AI29+AJ29)-(AE29+AF29))*24<-720,\"Neinformat\",((AI29+AJ29)-(AE29+AF29))*24),\"Nu a fost afectat producator/consumator\")),\"\")","v":""},{"$f":"IF(B29=\"X\",IF(AN29=\"DA\",IF(AU29<6,LEN(TRIM(U29))-LEN(SUBSTITUTE(U29,CHAR(44),\"\"))+1,0),\"-\"),\"\")","v":""},{"$f":"IF(B29=\"X\",IF(AN29=\"DA\",LEN(TRIM(U29))-LEN(SUBSTITUTE(U29,CHAR(44),\"\"))+1,\"-\"),\"\")","v":""},{"$f":"IF(B29=\"X\",IF(AN29=\"\",\"Afectat sau NU?\",IF(AN29=\"DA\",((AG29+AH29)-(AE29+AF29))*24,\"Nu a fost afectat producator/consumator\")),\"\")","v":""},{"$f":"IF(B29=\"X\",IF(AN29=\"DA\",IF(AX29>24,IF(BA29=\"NU\",0,LEN(TRIM(V29))-LEN(SUBSTITUTE(V29,CHAR(44),\"\"))+1),0),\"-\"),\"\")","v":""},{"$f":"IF(B29=\"X\",IF(AN29=\"DA\",IF(AX29>24,LEN(TRIM(V29))-LEN(SUBSTITUTE(V29,CHAR(44),\"\"))+1,0),\"-\"),\"\")","v":""},null,null,null,null,null,"Afectat sau NU?",{"$f":"IF(C29=\"X\",IF(AN29=\"DA\",IF(AND(BF29>=5,AK29<>\"\"),LEN(TRIM(V29))-LEN(SUBSTITUTE(V29,CHAR(44),\"\"))+1,0),\"-\"),\"\")","v":"-"},{"$f":"IF(C29=\"X\",IF(AN29=\"DA\",LEN(TRIM(V29))-LEN(SUBSTITUTE(V29,CHAR(44),\"\"))+1,\"-\"),\"\")","v":"-"},"Afectat sau NU?",{"$f":"IF(C29=\"X\",IF(AN29=\"DA\",IF(AND(BI29>=5,AI29<>\"\"),LEN(TRIM(U29))-LEN(SUBSTITUTE(U29,CHAR(44),\"\"))+1,0),\"-\"),\"\")","v":"-"},{"$f":"IF(C29=\"X\",IF(AN29=\"DA\",LEN(TRIM(U29))-LEN(SUBSTITUTE(U29,CHAR(44),\"\"))+1,\"-\"),\"\")","v":"-"},{"$f":"IF(C29=\"X\",IF(AN29=\"\",\"Afectat sau NU?\",IF(AN29=\"DA\",((AG29+AH29)-(Z29+AA29))*24,\"Nu a fost afectat producator/consumator\")),\"\")","v":"Afectat sau NU?"},{"$f":"IF(C29=\"X\",IF(AN29<>\"DA\",\"-\",IF(AND(AN29=\"DA\",BL29<=0),LEN(TRIM(V29))-LEN(SUBSTITUTE(V29,CHAR(44),\"\"))+1+LEN(TRIM(U29))-LEN(SUBSTITUTE(U29,CHAR(44),\"\"))+1,0)),\"\")","v":"-"},{"$f":"IF(C29=\"X\",IF(AN29=\"DA\",LEN(TRIM(V29))-LEN(SUBSTITUTE(V29,CHAR(44),\"\"))+1+LEN(TRIM(U29))-LEN(SUBSTITUTE(U29,CHAR(44),\"\"))+1,\"-\"),\"\")","v":"-"}]
[15,"-","x","Pregătire conductă de transport gaze naturale DN 700 Seleuș - Cristur - Bățani în vederea transformării în conductă godevilabilă - etapa 2B (jud. Harghita)",85225,"Porumbenii Mici","Harghita",508390.27,530075.4,508390.27,530075.4,"-","-","SM0382D0","Porumbenii Mici","-","-","-","-","SM-SD001",null,"Hargaz","aptilie - septembrie 2024",null,null,null,null,"Brașov",null,null,null,null,null,null,null,null,null,null,null,null,null,"PLRRM 2023-2025\nAnexa1_II_B10",null,"","","","","","","","","",null,null,null,null,null,"Afectat sau NU?","-","-","Afectat sau NU?","-","-","Afectat sau NU?","-","-"]
[16,"-","x","Pregătire conductă de transport gaze naturale DN 700 Seleuș - Cristur - Bățani în vederea transformării în conductă godevilabilă - etapa 2B (jud. Harghita)",85216,"Porumbenii Mari","Harghita",510974.58,529794.75,510974.58,529794.75,"-","-","SM0383D0","Porumbenii Mari","-","-","-","-","SM-SD001",null,"Hargaz","aptilie - septembrie 2024",null,null,null,null,"Brașov",null,null,null,null,null,null,null,null,null,null,null,null,null,"PLRRM 2023-2025\nAnexa1_II_B10",null,"","","","","","","","","",null,null,null,null,null,"Afectat sau NU?","-","-","Afectat sau NU?","-","-","Afectat sau NU?","-","-"]
[17,"-","x","Pregătire conductă de transport gaze naturale DN 700 Seleuș - Cristur - Bățani în vederea transformării în conductă godevilabilă - etapa 2B (jud. Harghita)",85190,"Lutița","Harghita",514498.48,528362.56999999995,514498.48,528362.56999999995,"-","-","SM0384D0","Lutița","-","-","-","-","SM-SD001",null,"Delgaz Grid","aptilie - septembrie 2024",null,null,null,null,"Brașov",null,null,null,null,null,null,null,null,null,null,null,null,null,"PLRRM 2023-2025\nAnexa1_II_B10",null,{"$f":"IF(B32=\"X\",IF(AN32=\"\",\"Afectat sau NU?\",IF(AN32=\"DA\",IF(((AK32+AL32)-(AE32+AF32))*24<-720,\"Neinformat\",((AK32+AL32)-(AE32+AF32))*24),\"Nu a fost afectat producator/consumator\")),\"\")","v":""},{"$f":"IF(B32=\"X\",IF(AN32=\"DA\",IF(AR32<6,LEN(TRIM(V32))-LEN(SUBSTITUTE(V32,CHAR(44),\"\"))+1,0),\"-\"),\"\")","v":""},{"$f":"IF(B32=\"X\",IF(AN32=\"DA\",LEN(TRIM(V32))-LEN(SUBSTITUTE(V32,CHAR(44),\"\"))+1,\"-\"),\"\")","v":""},{"$f":"IF(B32=\"X\",IF(AN32=\"\",\"Afectat sau NU?\",IF(AN32=\"DA\",IF(((AI32+AJ32)-(AE32+AF32))*24<-720,\"Neinformat\",((AI32+AJ32)-(AE32+AF32))*24),\"Nu a fost afectat producator/consumator\")),\"\")","v":""},{"$f":"IF(B32=\"X\",IF(AN32=\"DA\",IF(AU32<6,LEN(TRIM(U32))-LEN(SUBSTITUTE(U32,CHAR(44),\"\"))+1,0),\"-\"),\"\")","v":""},{"$f":"IF(B32=\"X\",IF(AN32=\"DA\",LEN(TRIM(U32))-LEN(SUBSTITUTE(U32,CHAR(44),\"\"))+1,\"-\"),\"\")","v":""},{"$f":"IF(B32=\"X\",IF(AN32=\"\",\"Afectat sau NU?\",IF(AN32=\"DA\",((AG32+AH32)-(AE32+AF32))*24,\"Nu a fost afectat producator/consumator\")),\"\")","v":""},{"$f":"IF(B32=\"X\",IF(AN32=\"DA\",IF(AX32>24,IF(BA32=\"NU\",0,LEN(TRIM(V32))-LEN(SUBSTITUTE(V32,CHAR(44),\"\"))+1),0),\"-\"),\"\")","v":""},{"$f":"IF(B32=\"X\",IF(AN32=\"DA\",IF(AX32>24,LEN(TRIM(V32))-LEN(SUBSTITUTE(V32,CHAR(44),\"\"))+1,0),\"-\"),\"\")","v":""},null,null,null,null,null,"Afectat sau NU?",{"$f":"IF(C32=\"X\",IF(AN32=\"DA\",IF(AND(BF32>=5,AK32<>\"\"),LEN(TRIM(V32))-LEN(SUBSTITUTE(V32,CHAR(44),\"\"))+1,0),\"-\"),\"\")","v":"-"},{"$f":"IF(C32=\"X\",IF(AN32=\"DA\",LEN(TRIM(V32))-LEN(SUBSTITUTE(V32,CHAR(44),\"\"))+1,\"-\"),\"\")","v":"-"},"Afectat sau NU?",{"$f":"IF(C32=\"X\",IF(AN32=\"DA\",IF(AND(BI32>=5,AI32<>\"\"),LEN(TRIM(U32))-LEN(SUBSTITUTE(U32,CHAR(44),\"\"))+1,0),\"-\"),\"\")","v":"-"},{"$f":"IF(C32=\"X\",IF(AN32=\"DA\",LEN(TRIM(U32))-LEN(SUBSTITUTE(U32,CHAR(44),\"\"))+1,\"-\"),\"\")","v":"-"},{"$f":"IF(C32=\"X\",IF(AN32=\"\",\"Afectat sau NU?\",IF(AN32=\"DA\",((AG32+AH32)-(Z32+AA32))*24,\"Nu a fost afectat producator/consumator\")),\"\")","v":"Afectat sau NU?"},{"$f":"IF(C32=\"X\",IF(AN32<>\"DA\",\"-\",IF(AND(AN32=\"DA\",BL32<=0),LEN(TRIM(V32))-LEN(SUBSTITUTE(V32,CHAR(44),\"\"))+1+LEN(TRIM(U32))-LEN(SUBSTITUTE(U32,CHAR(44),\"\"))+1,0)),\"\")","v":"-"},{"$f":"IF(C32=\"X\",IF(AN32=\"DA\",LEN(TRIM(V32))-LEN(SUBSTITUTE(V32,CHAR(44),\"\"))+1+LEN(TRIM(U32))-LEN(SUBSTITUTE(U32,CHAR(44),\"\"))+1,\"-\"),\"\")","v":"-"}]
[18,"-","x","Montare gară primire godevil  DN600/ANSI40 în NT Recaș","-","Csanadpalota","-",170687.28,531495.46,170687.28,531495.46,"-","-","SM1281D0","Csanadpalota Export","-","-","-","-","SM1281D0",null,"FGSZ Ltd","iulie - septembrie 2024",null,null,null,null,"Arad",null,null,null,null,null,null,null,null,null,null,null,null,null,"PMDI 2023-2025\nAnexa1_B8",null,"","","","","","","","","",null,null,null,null,null,"Afectat sau NU?","-","-","Afectat sau NU?","-","-","Afectat sau NU?","-","-"]
[19,"-","x","Montare gară primire godevil  DN600/ANSI40 în NT Recaș","-","Csanadpalota","-",170687.28,531495.46,170687.28,531495.46,"-","-","-","-","-","-","PM0266","Csanapalota","PM0266",null,"FGSZ Ltd","iulie - septembrie 2024",null,null,null,null,"Arad",null,null,null,null,null,null,null,null,null,null,null,null,null,"PMDI 2023-2025\nAnexa1_B8",null,"","","","","","","","","",null,null,null,null,null,"Afectat sau NU?","-","-","Afectat sau NU?","-","-","Afectat sau NU?","-","-"]
[20,"-","x","Montare robinet de reglare în NT Hurezani pe direcția Hurezani-Corbu-București, fir godevilabil",80515,"Hurezani","Gorj",394174.23,369081.88,394174.23,369081.88,"-","-","-","-","PM0062","Hurezani - Bulbuceni","-","-","PM-PP001",null,"Petrom","iulie - septembrie 2024",null,null,null,null,"Craiova",null,null,null,null,null,null,null,null,null,null,null,null,null,"PMDI 2023-2025\nAnexa1_B9",null,"","","","","","","","","",null,null,null,null,null,"Afectat sau NU?","-","-","Afectat sau NU?","-","-","Afectat sau NU?","-","-"]
[21,"-","x","Adaptare la teren și montare gară de primire GODEVIL DN700 pe conducta de transport gaze naturale DN 700 Inel București",102053,"Olteni","Ilfov",577911.68999999994,322107.23,577911.68999999994,322107.23,"-","-","SM1224D0","Olteni","-","-","-","-","SM-SD001",null,"Premier Energy","iulie - septembrie 2024",null,null,null,null,"București",null,null,null,null,null,null,null,null,null,null,null,null,null,"PMDI 2023-2025\nAnexa3_A.2.3.",null,{"$f":"IF(B36=\"X\",IF(AN36=\"\",\"Afectat sau NU?\",IF(AN36=\"DA\",IF(((AK36+AL36)-(AE36+AF36))*24<-720,\"Neinformat\",((AK36+AL36)-(AE36+AF36))*24),\"Nu a fost afectat producator/consumator\")),\"\")","v":""},{"$f":"IF(B36=\"X\",IF(AN36=\"DA\",IF(AR36<6,LEN(TRIM(V36))-LEN(SUBSTITUTE(V36,CHAR(44),\"\"))+1,0),\"-\"),\"\")","v":""},{"$f":"IF(B36=\"X\",IF(AN36=\"DA\",LEN(TRIM(V36))-LEN(SUBSTITUTE(V36,CHAR(44),\"\"))+1,\"-\"),\"\")","v":""},{"$f":"IF(B36=\"X\",IF(AN36=\"\",\"Afectat sau NU?\",IF(AN36=\"DA\",IF(((AI36+AJ36)-(AE36+AF36))*24<-720,\"Neinformat\",((AI36+AJ36)-(AE36+AF36))*24),\"Nu a fost afectat producator/consumator\")),\"\")","v":""},{"$f":"IF(B36=\"X\",IF(AN36=\"DA\",IF(AU36<6,LEN(TRIM(U36))-LEN(SUBSTITUTE(U36,CHAR(44),\"\"))+1,0),\"-\"),\"\")","v":""},{"$f":"IF(B36=\"X\",IF(AN36=\"DA\",LEN(TRIM(U36))-LEN(SUBSTITUTE(U36,CHAR(44),\"\"))+1,\"-\"),\"\")","v":""},{"$f":"IF(B36=\"X\",IF(AN36=\"\",\"Afectat sau NU?\",IF(AN36=\"DA\",((AG36+AH36)-(AE36+AF36))*24,\"Nu a fost afectat producator/consumator\")),\"\")","v":""},{"$f":"IF(B36=\"X\",IF(AN36=\"DA\",IF(AX36>24,IF(BA36=\"NU\",0,LEN(TRIM(V36))-LEN(SUBSTITUTE(V36,CHAR(44),\"\"))+1),0),\"-\"),\"\")","v":""},{"$f":"IF(B36=\"X\",IF(AN36=\"DA\",IF(AX36>24,LEN(TRIM(V36))-LEN(SUBSTITUTE(V36,CHAR(44),\"\"))+1,0),\"-\"),\"\")","v":""},null,null,null,null,null,"Afectat sau NU?",{"$f":"IF(C36=\"X\",IF(AN36=\"DA\",IF(AND(BF36>=5,AK36<>\"\"),LEN(TRIM(V36))-LEN(SUBSTITUTE(V36,CHAR(44),\"\"))+1,0),\"-\"),\"\")","v":"-"},{"$f":"IF(C36=\"X\",IF(AN36=\"DA\",LEN(TRIM(V36))-LEN(SUBSTITUTE(V36,CHAR(44),\"\"))+1,\"-\"),\"\")","v":"-"},"Afectat sau NU?",{"$f":"IF(C36=\"X\",IF(AN36=\"DA\",IF(AND(BI36>=5,AI36<>\"\"),LEN(TRIM(U36))-LEN(SUBSTITUTE(U36,CHAR(44),\"\"))+1,0),\"-\"),\"\")","v":"-"},{"$f":"IF(C36=\"X\",IF(AN36=\"DA\",LEN(TRIM(U36))-LEN(SUBSTITUTE(U36,CHAR(44),\"\"))+1,\"-\"),\"\")","v":"-"},{"$f":"IF(C36=\"X\",IF(AN36=\"\",\"Afectat sau NU?\",IF(AN36=\"DA\",((AG36+AH36)-(Z36+AA36))*24,\"Nu a fost afectat producator/consumator\")),\"\")","v":"Afectat sau NU?"},{"$f":"IF(C36=\"X\",IF(AN36<>\"DA\",\"-\",IF(AND(AN36=\"DA\",BL36<=0),LEN(TRIM(V36))-LEN(SUBSTITUTE(V36,CHAR(44),\"\"))+1+LEN(TRIM(U36))-LEN(SUBSTITUTE(U36,CHAR(44),\"\"))+1,0)),\"\")","v":"-"},{"$f":"IF(C36=\"X\",IF(AN36=\"DA\",LEN(TRIM(V36))-LEN(SUBSTITUTE(V36,CHAR(44),\"\"))+1+LEN(TRIM(U36))-LEN(SUBSTITUTE(U36,CHAR(44),\"\"))+1,\"-\"),\"\")","v":"-"}]
[22,"-","x","Punere în siguranță conductă de transport gaze naturale DN800 Butimanu - Brazi, la subtraversare râu Prahova, zona Stăncești, jud. Prahova",130721,"Brazii de Sus","Prahova",578964.69999999995,376015.84,578964.69999999995,376015.84,"-","-","SM1248D0","Cogenerare Brazi","-","-","-","-","SM-CF001",null,"Petrom (livrare directă)","martie - aprilie 2024",null,null,null,null,"București",null,null,null,null,null,null,null,null,null,null,null,null,null,"PMDI 2023-2025\nAnexa3_A.2.24.",null,{"$f":"IF(B37=\"X\",IF(AN37=\"\",\"Afectat sau NU?\",IF(AN37=\"DA\",IF(((AK37+AL37)-(AE37+AF37))*24<-720,\"Neinformat\",((AK37+AL37)-(AE37+AF37))*24),\"Nu a fost afectat producator/consumator\")),\"\")","v":""},{"$f":"IF(B37=\"X\",IF(AN37=\"DA\",IF(AR37<6,LEN(TRIM(V37))-LEN(SUBSTITUTE(V37,CHAR(44),\"\"))+1,0),\"-\"),\"\")","v":""},{"$f":"IF(B37=\"X\",IF(AN37=\"DA\",LEN(TRIM(V37))-LEN(SUBSTITUTE(V37,CHAR(44),\"\"))+1,\"-\"),\"\")","v":""},{"$f":"IF(B37=\"X\",IF(AN37=\"\",\"Afectat sau NU?\",IF(AN37=\"DA\",IF(((AI37+AJ37)-(AE37+AF37))*24<-720,\"Neinformat\",((AI37+AJ37)-(AE37+AF37))*24),\"Nu a fost afectat producator/consumator\")),\"\")","v":""},{"$f":"IF(B37=\"X\",IF(AN37=\"DA\",IF(AU37<6,LEN(TRIM(U37))-LEN(SUBSTITUTE(U37,CHAR(44),\"\"))+1,0),\"-\"),\"\")","v":""},{"$f":"IF(B37=\"X\",IF(AN37=\"DA\",LEN(TRIM(U37))-LEN(SUBSTITUTE(U37,CHAR(44),\"\"))+1,\"-\"),\"\")","v":""},{"$f":"IF(B37=\"X\",IF(AN37=\"\",\"Afectat sau NU?\",IF(AN37=\"DA\",((AG37+AH37)-(AE37+AF37))*24,\"Nu a fost afectat producator/consumator\")),\"\")","v":""},{"$f":"IF(B37=\"X\",IF(AN37=\"DA\",IF(AX37>24,IF(BA37=\"NU\",0,LEN(TRIM(V37))-LEN(SUBSTITUTE(V37,CHAR(44),\"\"))+1),0),\"-\"),\"\")","v":""},{"$f":"IF(B37=\"X\",IF(AN37=\"DA\",IF(AX37>24,LEN(TRIM(V37))-LEN(SUBSTITUTE(V37,CHAR(44),\"\"))+1,0),\"-\"),\"\")","v":""},null,null,null,null,null,"Afectat sau NU?",{"$f":"IF(C37=\"X\",IF(AN37=\"DA\",IF(AND(BF37>=5,AK37<>\"\"),LEN(TRIM(V37))-LEN(SUBSTITUTE(V37,CHAR(44),\"\"))+1,0),\"-\"),\"\")","v":"-"},{"$f":"IF(C37=\"X\",IF(AN37=\"DA\",LEN(TRIM(V37))-LEN(SUBSTITUTE(V37,CHAR(44),\"\"))+1,\"-\"),\"\")","v":"-"},"Afectat sau NU?",{"$f":"IF(C37=\"X\",IF(AN37=\"DA\",IF(AND(BI37>=5,AI37<>\"\"),LEN(TRIM(U37))-LEN(SUBSTITUTE(U37,CHAR(44),\"\"))+1,0),\"-\"),\"\")","v":"-"},{"$f":"IF(C37=\"X\",IF(AN37=\"DA\",LEN(TRIM(U37))-LEN(SUBSTITUTE(U37,CHAR(44),\"\"))+1,\"-\"),\"\")","v":"-"},{"$f":"IF(C37=\"X\",IF(AN37=\"\",\"Afectat sau NU?\",IF(AN37=\"DA\",((AG37+AH37)-(Z37+AA37))*24,\"Nu a fost afectat producator/consumator\")),\"\")","v":"Afectat sau NU?"},{"$f":"IF(C37=\"X\",IF(AN37<>\"DA\",\"-\",IF(AND(AN37=\"DA\",BL37<=0),LEN(TRIM(V37))-LEN(SUBSTITUTE(V37,CHAR(44),\"\"))+1+LEN(TRIM(U37))-LEN(SUBSTITUTE(U37,CHAR(44),\"\"))+1,0)),\"\")","v":"-"},{"$f":"IF(C37=\"X\",IF(AN37=\"DA\",LEN(TRIM(V37))-LEN(SUBSTITUTE(V37,CHAR(44),\"\"))+1+LEN(TRIM(U37))-LEN(SUBSTITUTE(U37,CHAR(44),\"\"))+1,\"-\"),\"\")","v":"-"}]
[23,"-","x","Punerea în siguranță conductă de transport gaze naturale DN500 Schitu Golesti - Tigveni, la traversarea aeriană pârâu Valea Danului, zona loc.Valea Danului, jud. Argeș",13891,"Albești de Argeș","Argeș",474126.09,410441.12,474126.09,410441.12,"-","-","SM1244D0","Albești de Argeș","-","-","-","-","SM-SD001",null,"Distrigaz Sud Rețele","iunie - iulie 2024",null,null,null,null,"Craiova",null,null,null,null,null,null,null,null,null,null,null,null,null,"PMDI 2023-2025\nAnexa3_A.2.28.",null,"","","","","","","","","",null,null,null,null,null,"Afectat sau NU?","-","-","Afectat sau NU?","-","-","Afectat sau NU?","-","-"]
[24,"-","x","Punere în siguranță conductă de transport gaze naturale DN500 Posada - Bobolia, la subtraversare râu Prahova zona Nistorești - Breaza, jud. Prahova",131158,"Nistorești","Prahova",552081.85,411912.9,552081.85,411912.9,"-","-","SM0087D0","SC Izvorul Rece Nistorești","-","-","-","-","SM-CF001",null,"SC Izvorul Rece","noiembrie - decembrie 2023",null,null,null,null,"București",null,null,null,null,null,null,null,null,null,null,null,null,null,"PMDI 2023-2025\nAnexa3_A.2.32.",null,"","","","","","","","","",null,null,null,null,null,"Afectat sau NU?","-","-","Afectat sau NU?","-","-","Afectat sau NU?","-","-"]
[25,"-","x","Punere în siguranță conductă de transport gaze naturale DN500 racord SRM Brașov II",40205,"Brașov","Brașov",546477.46,467208.75,546477.46,467208.75,"-","-","SM1034D0","SC Kronospan Stupini Brașov","-","-","-","-","SM-CF001",null,"SC Kronospan","ianuarie - februarie 2024\nanul gazier 2022 - 2023",null,null,null,null,"Brașov",null,"Lucrare urgentă pentru care a fost emis ordinul de începere din data de 21.06.2023.",null,null,null,null,null,null,null,null,null,null,null,"PMDI 2023-2025\nAnexa3_A.2.33.",null,"","","","","","","","","",null,null,null,null,null,"Afectat sau NU?","-","-","Afectat sau NU?","-","-","Afectat sau NU?","-","-"]
[26,"-","x","Punere în siguranță conductă de transport gaze naturale DN500 racord SRM Brașov II",41934,"Sânpetru","Brașov",548450.68000000005,465899.12,548450.68000000005,465899.12,"-","-","SM0050D2","Sânpetru","-","-","-","-","SM-SD001",null,"Distrigaz Sud Rețele","ianuarie - februarie 2024\nanul gazier 2022 - 2023",null,null,null,null,"Brașov",null,"Lucrare urgentă pentru care a fost emis ordinul de începere din data de 21.06.2023.",null,null,null,null,null,null,null,null,null,null,null,"PMDI 2023-2025\nAnexa3_A.2.33.",null,"","","","","","","","","",null,null,null,null,null,"Afectat sau NU?","-","-","Afectat sau NU?","-","-","Afectat sau NU?","-","-"]
[27,"-","x","Punere în siguranță conductă de transport gaze naturale DN500 racord SRM Brașov II",41097,"Hărman","Brașov",553066.53,467266.75,553066.53,467266.75,"-","-","SM0048D0","Hărman","-","-","-","-","SM-SD001",null,"Distrigaz Sud Rețele","ianuarie - februarie 2024\nanul gazier 2022 - 2023",null,null,null,null,"Brașov",null,"Lucrare urgentă pentru care a fost emis ordinul de începere din data de 21.06.2023.",null,null,null,null,null,null,null,null,null,null,null,"PMDI 2023-2025\nAnexa3_A.2.33.",null,"","","","","","","","","",null,null,null,null,null,"Afectat sau NU?","-","-","Afectat sau NU?","-","-","Afectat sau NU?","-","-"]
[28,"-","x","Punere în siguranță conductă de transport gaze naturale DN500 racord SRM Brașov II",41676,"Prejmer","Brașov",558035.31000000006,468707.66,558035.31000000006,468707.66,"-","-","SM1011D0","SC Graells Prejmer","-","-","-","-","SM-SD001",null,"Distrigaz Sud Rețele","ianuarie - februarie 2024\nanul gazier 2022 - 2023",null,null,null,null,"Brașov",null,"Lucrare urgentă pentru care a fost emis ordinul de începere din data de 21.06.2023.",null,null,null,null,null,null,null,null,null,null,null,"PMDI 2023-2025\nAnexa3_A.2.33.",null,"","","","","","","","","",null,null,null,null,null,"Afectat sau NU?","-","-","Afectat sau NU?","-","-","Afectat sau NU?","-","-"]
[29,"-","x","Punere în siguranță conductă de transport gaze naturale DN500 racord SRM Brașov II",41676,"Prejmer","Brașov",560082.66,468147.57,560082.66,468147.57,"-","-","SM0049D0","Prejmer","-","-","-","-","SM-SD001",null,"Distrigaz Sud Rețele","ianuarie - februarie 2024\nanul gazier 2022 - 2023",null,null,null,null,"Brașov",null,"Lucrare urgentă pentru care a fost emis ordinul de începere din data de 21.06.2023.",null,null,null,null,null,null,null,null,null,null,null,"PMDI 2023-2025\nAnexa3_A.2.33.",null,"","","","","","","","","",null,null,null,null,null,"Afectat sau NU?","-","-","Afectat sau NU?","-","-","Afectat sau NU?","-","-"]
[30,"-","x","Punere în siguranță conductă de transport gaze naturale DN500 racord SRM Brașov II",40205,"Brașov","Brașov",554708.24,461528.35,554708.24,461528.35,"-","-","SM0866D0","Brașov II","-","-","-","-","SM-SD001",null,"Distrigaz Sud Rețele","ianuarie - februarie 2024\nanul gazier 2022 - 2023",null,null,null,null,"Brașov",null,"Lucrare urgentă pentru care a fost emis ordinul de începere din data de 21.06.2023.",null,null,null,null,null,null,null,null,null,null,null,"PMDI 2023-2025\nAnexa3_A.2.33.",null,"","","","","","","","","",null,null,null,null,null,"Afectat sau NU?","-","-","Afectat sau NU?","-","-","Afectat sau NU?","-","-"]
[31,"-","x","Punere în siguranță conductă de transport gaze naturale DN500 racord SRM Brașov II",40205,"Brașov","Brașov",554708.24,461528.35,554708.24,461528.35,"-","-","SM0866D1","Tărlungeni","-","-","-","-","SM-SD001",null,"Megaconstruct","ianuarie - februarie 2024\nanul gazier 2022 - 2023",null,null,null,null,"Brașov",null,"Lucrare urgentă pentru care a fost emis ordinul de începere din data de 21.06.2023.",null,null,null,null,null,null,null,null,null,null,null,"PMDI 2023-2025\nAnexa3_A.2.33.",null,"","","","","","","","","",null,null,null,null,null,"Afectat sau NU?","-","-","Afectat sau NU?","-","-","Afectat sau NU?","-","-"]
[32,"-","x","Punerea în siguranță conductă de transport gaze naturale DN250 Târgu Ocna - Slănic Moldova, în zona Târgu Ocna, jud. Bacău",20947,"Cireșoaia","Bacău",619918.59,528972.02,619918.59,528972.02,"-","-","SM0422D0","Cireșoaia","-","-","-","-","SM-SD001",null,"Delgaz Grid","martie - aprilie 2024",null,null,null,null,"Bacău",null,null,null,null,null,null,null,null,null,null,null,null,null,"PMDI 2023-2025\nAnexa3_A.2.43.",null,"","","","","","","","","",null,null,null,null,null,"Afectat sau NU?","-","-","Afectat sau NU?","-","-","Afectat sau NU?","-","-"]
[33,"-","x","Conductă de transport gaze naturale DN500 Plătărești - Bălăceanca",103023,"Fundeni","Călărași",611849.99,322444.53000000003,611849.99,322444.53000000003,"-","-","SM1302D0","Fundeni","-","-","-","-","SM-SD001",null,"Dornacor","noiembrie - decebrie 2023",null,null,null,null,"București",null,null,null,null,null,null,null,null,null,null,null,null,null,"PMDI 2023-2025\nAnexa3_B.1.1.",null,"","","","","","","","","",null,null,null,null,null,{"$f":"IF(C48=\"X\",IF(AN48=\"\",\"Afectat sau NU?\",IF(AN48=\"DA\",IF(AK48=\"\",\"Neinformat\",NETWORKDAYS(AK48+AL48,AE48+AF48,$BS$2:$BS$14)-2),\"Nu a fost afectat producator/consumator\")),\"\")","v":"Afectat sau NU?"},"-","-",{"$f":"IF(C48=\"X\",IF(AN48=\"\",\"Afectat sau NU?\",IF(AN48=\"DA\",IF(AI48=\"\",\"Neinformat\",NETWORKDAYS(AI48+AJ48,AE48+AF48,$BS$2:$BS$14)-2),\"Nu a fost afectat producator/consumator\")),\"\")","v":"Afectat sau NU?"},"-","-","Afectat sau NU?","-","-"]
[34,"-","x","Conductă de transport gaze naturale DN500 Plătărești - Bălăceanca",101813,"Chirnogi","Călărași",627947.05000000005,921419.55,627947.05000000005,921419.55,"-","-","SM1152D0","Chirnogi","-","-","-","-","SM-SD001",null,"Gazmir","noiembrie - decebrie 2023",null,null,null,null,"București",null,null,null,null,null,null,null,null,null,null,null,null,null,"PMDI 2023-2025\nAnexa3_B.1.1.",null,"","","","","","","","","",null,null,null,null,null,"Afectat sau NU?","-","-","Afectat sau NU?","-","-","Afectat sau NU?","-","-"]
[35,"-","x","Conductă de transport gaze naturale DN500 Plătărești - Bălăceanca",100629,"Oltenița","Călărași",632490.71,289208.03999999998,632490.71,289208.03999999998,"-","-","SM0962D0","Oltenița","-","-","-","-","SM-SD001",null,"Distrigaz Sud Rețele","noiembrie - decebrie 2023",null,null,null,null,"București",null,null,null,null,null,null,null,null,null,null,null,null,null,"PMDI 2023-2025\nAnexa3_B.1.1.",null,"","","","","","","","","",null,null,null,null,null,"Afectat sau NU?","-","-","Afectat sau NU?","-","-","Afectat sau NU?","-","-"]
[36,"-","x","Conductă de transport gaze naturale DN500 Plătărești - Bălăceanca",101154,"Berceni IF","Ilfov",593357.13,315818.77,593357.13,315818.77,"-","-","SM0907D0","Berceni IF","-","-","-","-","SM-SD001",null,"Progaz","noiembrie - decebrie 2023",null,null,null,null,"București",null,null,null,null,null,null,null,null,null,null,null,null,null,"PMDI 2023-2025\nAnexa3_B.1.1.",null,"","","","","","","","","",null,null,null,null,null,"Afectat sau NU?","-","-","Afectat sau NU?","-","-","Afectat sau NU?","-","-"]
[37,"-","x","Conductă de transport gaze naturale DN600 Mihai Bravu - Siliștea și transformarea în conductă godevilabilă. Subtraversare Dunăre Braț Borcea",43322,"Gropeni","Brăila",739106.8,399849.46,739106.8,399849.46,"-","-","SM1305D0","SC Agricost Albatros 1 Gropeni","-","-","-","-","SM-CF001",null,"SC Agricost","decembrie 2023 - februarie 2024",null,null,null,null,"Brăila",null,null,null,null,null,null,null,null,null,null,null,null,null,"PMDI 2023-2025\nAnexa4_A.5.",null,"","","","","","","","","",null,null,null,null,null,"Afectat sau NU?","-","-","Afectat sau NU?","-","-","Afectat sau NU?","-","-"]
[38,"-","x","Conductă de transport gaze naturale DN600 Mihai Bravu - Siliștea și transformarea în conductă godevilabilă. Subtraversare Dunăre Braț Borcea",43322,"Gropeni","Brăila",739233.22,393360.45,739233.22,393360.45,"-","-","SM1308D0","SC Agricost Lebăda 2 Gropeni","-","-","-","-","SM-CF001",null,"SC Agricost","decembrie 2023 - februarie 2024",null,null,null,null,"Brăila",null,null,null,null,null,null,null,null,null,null,null,null,null,"PMDI 2023-2025\nAnexa4_A.5.",null,{"$f":"IF(B53=\"X\",IF(AN53=\"\",\"Afectat sau NU?\",IF(AN53=\"DA\",IF(((AK53+AL53)-(AE53+AF53))*24<-720,\"Neinformat\",((AK53+AL53)-(AE53+AF53))*24),\"Nu a fost afectat producator/consumator\")),\"\")","v":""},{"$f":"IF(B53=\"X\",IF(AN53=\"DA\",IF(AR53<6,LEN(TRIM(V53))-LEN(SUBSTITUTE(V53,CHAR(44),\"\"))+1,0),\"-\"),\"\")","v":""},{"$f":"IF(B53=\"X\",IF(AN53=\"DA\",LEN(TRIM(V53))-LEN(SUBSTITUTE(V53,CHAR(44),\"\"))+1,\"-\"),\"\")","v":""},{"$f":"IF(B53=\"X\",IF(AN53=\"\",\"Afectat sau NU?\",IF(AN53=\"DA\",IF(((AI53+AJ53)-(AE53+AF53))*24<-720,\"Neinformat\",((AI53+AJ53)-(AE53+AF53))*24),\"Nu a fost afectat producator/consumator\")),\"\")","v":""},{"$f":"IF(B53=\"X\",IF(AN53=\"DA\",IF(AU53<6,LEN(TRIM(U53))-LEN(SUBSTITUTE(U53,CHAR(44),\"\"))+1,0),\"-\"),\"\")","v":""},{"$f":"IF(B53=\"X\",IF(AN53=\"DA\",LEN(TRIM(U53))-LEN(SUBSTITUTE(U53,CHAR(44),\"\"))+1,\"-\"),\"\")","v":""},{"$f":"IF(B53=\"X\",IF(AN53=\"\",\"Afectat sau NU?\",IF(AN53=\"DA\",((AG53+AH53)-(AE53+AF53))*24,\"Nu a fost afectat producator/consumator\")),\"\")","v":""},{"$f":"IF(B53=\"X\",IF(AN53=\"DA\",IF(AX53>24,IF(BA53=\"NU\",0,LEN(TRIM(V53))-LEN(SUBSTITUTE(V53,CHAR(44),\"\"))+1),0),\"-\"),\"\")","v":""},{"$f":"IF(B53=\"X\",IF(AN53=\"DA\",IF(AX53>24,LEN(TRIM(V53))-LEN(SUBSTITUTE(V53,CHAR(44),\"\"))+1,0),\"-\"),\"\")","v":""},null,null,null,null,null,"Afectat sau NU?",{"$f":"IF(C53=\"X\",IF(AN53=\"DA\",IF(AND(BF53>=5,AK53<>\"\"),LEN(TRIM(V53))-LEN(SUBSTITUTE(V53,CHAR(44),\"\"))+1,0),\"-\"),\"\")","v":"-"},{"$f":"IF(C53=\"X\",IF(AN53=\"DA\",LEN(TRIM(V53))-LEN(SUBSTITUTE(V53,CHAR(44),\"\"))+1,\"-\"),\"\")","v":"-"},"Afectat sau NU?",{"$f":"IF(C53=\"X\",IF(AN53=\"DA\",IF(AND(BI53>=5,AI53<>\"\"),LEN(TRIM(U53))-LEN(SUBSTITUTE(U53,CHAR(44),\"\"))+1,0),\"-\"),\"\")","v":"-"},{"$f":"IF(C53=\"X\",IF(AN53=\"DA\",LEN(TRIM(U53))-LEN(SUBSTITUTE(U53,CHAR(44),\"\"))+1,\"-\"),\"\")","v":"-"},{"$f":"IF(C53=\"X\",IF(AN53=\"\",\"Afectat sau NU?\",IF(AN53=\"DA\",((AG53+AH53)-(Z53+AA53))*24,\"Nu a fost afectat producator/consumator\")),\"\")","v":"Afectat sau NU?"},{"$f":"IF(C53=\"X\",IF(AN53<>\"DA\",\"-\",IF(AND(AN53=\"DA\",BL53<=0),LEN(TRIM(V53))-LEN(SUBSTITUTE(V53,CHAR(44),\"\"))+1+LEN(TRIM(U53))-LEN(SUBSTITUTE(U53,CHAR(44),\"\"))+1,0)),\"\")","v":"-"},{"$f":"IF(C53=\"X\",IF(AN53=\"DA\",LEN(TRIM(V53))-LEN(SUBSTITUTE(V53,CHAR(44),\"\"))+1+LEN(TRIM(U53))-LEN(SUBSTITUTE(U53,CHAR(44),\"\"))+1,\"-\"),\"\")","v":"-"}]
[39,"-","x","Conductă de transport gaze naturale DN600 Mihai Bravu - Siliștea și transformarea în conductă godevilabilă. Subtraversare Dunăre Braț Borcea",43322,"Gropeni","Brăila",727721.01,400811.2,727721.01,400811.2,"-","-","SM0115D0","SC TEBU Consult Invest Gropeni","-","-","-","-","SM-CF001",null,"SC TEBU","decembrie 2023 - februarie 2024",null,null,null,null,"Brăila",null,null,null,null,null,null,null,null,null,null,null,null,null,"PMDI 2023-2025\nAnexa4_A.5.",null,"","","","","","","","","",null,null,null,null,null,"Afectat sau NU?","-","-","Afectat sau NU?","-","-","Afectat sau NU?","-","-"]
[40,"-","x","Conductă de transport gaze naturale DN600 Mihai Bravu - Siliștea și transformarea în conductă godevilabilă. Subtraversare Dunăre Braț Borcea",44186,"Tichilești","Brăila",729013.84,409220.21,729013.84,409220.21,"-","-","SM0528D0","Tichilești","-","-","-","-","SM-SD001",null,"Distrigaz Sud Rețele","decembrie 2023 - februarie 2024",null,null,null,null,"Brăila",null,null,null,null,null,null,null,null,null,null,null,null,null,"PMDI 2023-2025\nAnexa4_A.5.",null,"","","","","","","","","",null,null,null,null,null,"Afectat sau NU?","-","-","Afectat sau NU?","-","-","Afectat sau NU?","-","-"]
[41,"-","x","Conductă de transport gaze naturale Tg. Neamț - Băltătești, Jud. Neamț",121064,"Târgu Neamț","Neamț",602678.26,634671.84,602678.26,634671.84,"-","-","SM0462D0","Târgu Neamț","-","-","-","-","SM-SD001",null,"Delgaz Grid","martie - aprilie 2024",null,null,null,null,"Bacău",null,null,null,null,null,null,null,null,null,null,null,null,null,"PMDI 2023-2025\nAnexa18_B.1.",null,"","","","","","","","","",null,null,null,null,null,"Afectat sau NU?","-","-","Afectat sau NU?","-","-","Afectat sau NU?","-","-"]
[42,"-","x","Conductă de transport gaze naturale Tg. Neamț - Băltătești, Jud. Neamț",121064,"Târgu Neamț","Neamț",602678.26,634671.84,602678.26,634671.84,"-","-","SM0462D1","Vânători","-","-","-","-","SM-SD001",null,"Mihoc Oil","martie - aprilie 2024",null,null,null,null,"Bacău",null,null,null,null,null,null,null,null,null,null,null,null,null,"PMDI 2023-2025\nAnexa18_B.1.",null,"","","","","","","","","",null,null,null,null,null,"Afectat sau NU?","-","-","Afectat sau NU?","-","-","Afectat sau NU?","-","-"]
[43,"-","x","Interconectare 32\" Moșu - Podișor cu 16\" Gura Șuții, zona Slobozia Moara și relocare Rv16 cu refulator.",68636,"Răcari","Dâmbovița",557141.14,348301.15,557141.14,348301.15,"-","-","SM0145D0","Răcari","-","-","-","-","SM-SD001",null," Distrigaz Sud Rețele","mai - septembrie 2024",null,null,null,null,"București",null,null,null,null,null,null,null,null,null,null,null,null,null,"Forțe proprii/SM",null,"","","","","","","","","",null,null,null,null,null,"Afectat sau NU?","-","-","Afectat sau NU?","-","-","Afectat sau NU?","-","-"]
[44,"-","x","Interconectare 32\" Moșu - Podișor cu 16\" Gura Șuții, zona Slobozia Moara și relocare Rv16 cu refulator.",105543,"Tărtășești","Dâmbovița",564729.06000000006,341811.75,564729.06000000006,341811.75,"-","-","SM0112D0","Tărtășești","-","-","-","-","SM-SD001",null,"Premier Energy","mai - septembrie 2024",null,null,null,null,"București",null,null,null,null,null,null,null,null,null,null,null,null,null,"Forțe proprii/SM",null,"","","","","","","","","",null,null,null,null,null,"Afectat sau NU?","-","-","Afectat sau NU?","-","-","Afectat sau NU?","-","-"]
[45,"-","x","Interconectare 32\" Moșu - Podișor cu 16\" Gura Șuții, zona Slobozia Moara și relocare Rv16 cu refulator.",104038,"Săbăreni","Giurgiu",569107.28,334140.34999999998,569107.28,334140.34999999998,"-","-","SM1086D0","Joița","-","-","-","-","SM-SD001",null,"Euro Seven Industry","mai - septembrie 2024",null,null,null,null,"București",null,null,null,null,null,null,null,null,null,null,null,null,null,"Forțe proprii/SM",null,"","","","","","","","","",null,null,null,null,null,"Afectat sau NU?","-","-","Afectat sau NU?","-","-","Afectat sau NU?","-","-"]
[46,"-","x","Eliminare R7 pe conducta 28” Coroi - București, zona Posada",131381,"Posada","Prahova",548893.69999999995,420137.21,548893.69999999995,420137.21,"-","-","SM0081D0","Posada","-","-","-","-","SM-SD001",null,"Distrigaz Sud Rețele","mai - septembrie 2024",null,null,null,null,"București",null,null,null,null,null,null,null,null,null,null,null,null,null,"Plan lucrări SM 2021, cap.A + forțe proprii",null,"","","","","","","","","",null,null,null,null,null,"Afectat sau NU?","-","-","Afectat sau NU?","-","-","Afectat sau NU?","-","-"]
[47,"-","x","Înlocuire instalație mecanică la SRM Finta",67489,"Finta","Dâmbovița",563895,366569.11,563895,366569.11,"-","-","SM0141D0","Finta","-","-","-","-","SM-SD001",null,"Distrigaz Sud Rețele","mai - septembrie 2024",null,null,null,null,"București",null,null,null,null,null,null,null,null,null,null,null,null,null,"Forțe proprii",null,"","","","","","","","","",null,null,null,null,null,"Afectat sau NU?","-","-","Afectat sau NU?","-","-","Afectat sau NU?","-","-"]
[48,"-","x","Înlocuire flansă electroizolantă pe racord SRM Vidra",105945,"Vidra","Ilfov",588819.98,315459.76,588819.98,315459.76,"-","-","SM0152D0","Vidra","-","-","-","-","SM-SD001",null,"Distrigaz Sud Rețele","octombrie - decembrie 2023",null,null,null,null,"București",null,null,null,null,null,null,null,null,null,null,null,null,null,"Forțe proprii",null,"","","","","","","","","",null,null,null,null,null,"Afectat sau NU?","-","-","Afectat sau NU?","-","-","Afectat sau NU?","-","-"]
[49,"-","x","Sistematizare interconectare teu Dragomirești",102614,"Dragomirești Vale","Ilfov",575255.72,327051.14,575255.72,327051.14,"-","-","SM1004D0","Portland Chiajna","-","-","-","-","SM-SD001",null,"Distrigaz Sud Rețele","mai - septembrie 2024",null,null,null,null,"București",null,null,null,null,null,null,null,null,null,null,null,null,null,"Forțe proprii",null,{"$f":"IF(B64=\"X\",IF(AN64=\"\",\"Afectat sau NU?\",IF(AN64=\"DA\",IF(((AK64+AL64)-(AE64+AF64))*24<-720,\"Neinformat\",((AK64+AL64)-(AE64+AF64))*24),\"Nu a fost afectat producator/consumator\")),\"\")","v":""},{"$f":"IF(B64=\"X\",IF(AN64=\"DA\",IF(AR64<6,LEN(TRIM(V64))-LEN(SUBSTITUTE(V64,CHAR(44),\"\"))+1,0),\"-\"),\"\")","v":""},{"$f":"IF(B64=\"X\",IF(AN64=\"DA\",LEN(TRIM(V64))-LEN(SUBSTITUTE(V64,CHAR(44),\"\"))+1,\"-\"),\"\")","v":""},{"$f":"IF(B64=\"X\",IF(AN64=\"\",\"Afectat sau NU?\",IF(AN64=\"DA\",IF(((AI64+AJ64)-(AE64+AF64))*24<-720,\"Neinformat\",((AI64+AJ64)-(AE64+AF64))*24),\"Nu a fost afectat producator/consumator\")),\"\")","v":""},{"$f":"IF(B64=\"X\",IF(AN64=\"DA\",IF(AU64<6,LEN(TRIM(U64))-LEN(SUBSTITUTE(U64,CHAR(44),\"\"))+1,0),\"-\"),\"\")","v":""},{"$f":"IF(B64=\"X\",IF(AN64=\"DA\",LEN(TRIM(U64))-LEN(SUBSTITUTE(U64,CHAR(44),\"\"))+1,\"-\"),\"\")","v":""},{"$f":"IF(B64=\"X\",IF(AN64=\"\",\"Afectat sau NU?\",IF(AN64=\"DA\",((AG64+AH64)-(AE64+AF64))*24,\"Nu a fost afectat producator/consumator\")),\"\")","v":""},{"$f":"IF(B64=\"X\",IF(AN64=\"DA\",IF(AX64>24,IF(BA64=\"NU\",0,LEN(TRIM(V64))-LEN(SUBSTITUTE(V64,CHAR(44),\"\"))+1),0),\"-\"),\"\")","v":""},{"$f":"IF(B64=\"X\",IF(AN64=\"DA\",IF(AX64>24,LEN(TRIM(V64))-LEN(SUBSTITUTE(V64,CHAR(44),\"\"))+1,0),\"-\"),\"\")","v":""},null,null,null,null,null,{"$f":"IF(C64=\"X\",IF(AN64=\"\",\"Afectat sau NU?\",IF(AN64=\"DA\",IF(AK64=\"\",\"Neinformat\",NETWORKDAYS(AK64+AL64,AE64+AF64,$BS$2:$BS$14)-2),\"Nu a fost afectat producator/consumator\")),\"\")","v":"Afectat sau NU?"},{"$f":"IF(C64=\"X\",IF(AN64=\"DA\",IF(AND(BF64>=5,AK64<>\"\"),LEN(TRIM(V64))-LEN(SUBSTITUTE(V64,CHAR(44),\"\"))+1,0),\"-\"),\"\")","v":"-"},{"$f":"IF(C64=\"X\",IF(AN64=\"DA\",LEN(TRIM(V64))-LEN(SUBSTITUTE(V64,CHAR(44),\"\"))+1,\"-\"),\"\")","v":"-"},{"$f":"IF(C64=\"X\",IF(AN64=\"\",\"Afectat sau NU?\",IF(AN64=\"DA\",IF(AI64=\"\",\"Neinformat\",NETWORKDAYS(AI64+AJ64,AE64+AF64,$BS$2:$BS$14)-2),\"Nu a fost afectat producator/consumator\")),\"\")","v":"Afectat sau NU?"},{"$f":"IF(C64=\"X\",IF(AN64=\"DA\",IF(AND(BI64>=5,AI64<>\"\"),LEN(TRIM(U64))-LEN(SUBSTITUTE(U64,CHAR(44),\"\"))+1,0),\"-\"),\"\")","v":"-"},{"$f":"IF(C64=\"X\",IF(AN64=\"DA\",LEN(TRIM(U64))-LEN(SUBSTITUTE(U64,CHAR(44),\"\"))+1,\"-\"),\"\")","v":"-"},{"$f":"IF(C64=\"X\",IF(AN64=\"\",\"Afectat sau NU?\",IF(AN64=\"DA\",((AG64+AH64)-(Z64+AA64))*24,\"Nu a fost afectat producator/consumator\")),\"\")","v":"Afectat sau NU?"},{"$f":"IF(C64=\"X\",IF(AN64<>\"DA\",\"-\",IF(AND(AN64=\"DA\",BL64<=0),LEN(TRIM(V64))-LEN(SUBSTITUTE(V64,CHAR(44),\"\"))+1+LEN(TRIM(U64))-LEN(SUBSTITUTE(U64,CHAR(44),\"\"))+1,0)),\"\")","v":"-"},{"$f":"IF(C64=\"X\",IF(AN64=\"DA\",LEN(TRIM(V64))-LEN(SUBSTITUTE(V64,CHAR(44),\"\"))+1+LEN(TRIM(U64))-LEN(SUBSTITUTE(U64,CHAR(44),\"\"))+1,\"-\"),\"\")","v":"-"}]
[50,"-","x","Sistematizare interconectare teu Dragomirești",179258,"Chiajna","Ilfov",575281.78,326844.52,575281.78,326844.52,"-","-","SM0911D0","Cefin (Iveco) Chiajna","-","-","-","-","SM-SD001",null,"Distrigaz Sud Rețele","mai - septembrie 2024",null,null,null,null,"București",null,null,null,null,null,null,null,null,null,null,null,null,null,"Forțe proprii",null,"","","","","","","","","",null,null,null,null,null,"Afectat sau NU?","-","-","Afectat sau NU?","-","-","Afectat sau NU?","-","-"]
[51,"-","x","Sistematizare instalație tehnologică SRM Corbeanca ",102179,"Corbeanca","Ilfov",582902.09,344014.84,582902.09,344014.84,"-","-","SM0148D0","Corbeanca","-","-","-","-","SM-SD001",null,"Distrigaz Sud Rețele","mai - septembrie 2024",null,null,null,null,"București",null,null,null,null,null,null,null,null,null,null,null,null,null,"Forțe proprii",null,"","","","","","","","","",null,null,null,null,null,"Afectat sau NU?","-","-","Afectat sau NU?","-","-","Afectat sau NU?","-","-"]
[52,"-","x","Relocare racord Elsid Titu în incinta SRM Gura Șuții ",66090,"Titu","Dâmbovița",544540.01,352291.66,544540.01,352291.66,"-","-","SM0147D0","SC Elsid Titu","-","-","-","-","SM-CF001",null,"SC Elsid","mai - septembrie 2024",null,null,null,null,"București",null,null,null,null,null,null,null,null,null,null,null,null,null,"Forțe proprii",null,{"$f":"IF(B67=\"X\",IF(AN67=\"\",\"Afectat sau NU?\",IF(AN67=\"DA\",IF(((AK67+AL67)-(AE67+AF67))*24<-720,\"Neinformat\",((AK67+AL67)-(AE67+AF67))*24),\"Nu a fost afectat producator/consumator\")),\"\")","v":""},{"$f":"IF(B67=\"X\",IF(AN67=\"DA\",IF(AR67<6,LEN(TRIM(V67))-LEN(SUBSTITUTE(V67,CHAR(44),\"\"))+1,0),\"-\"),\"\")","v":""},{"$f":"IF(B67=\"X\",IF(AN67=\"DA\",LEN(TRIM(V67))-LEN(SUBSTITUTE(V67,CHAR(44),\"\"))+1,\"-\"),\"\")","v":""},{"$f":"IF(B67=\"X\",IF(AN67=\"\",\"Afectat sau NU?\",IF(AN67=\"DA\",IF(((AI67+AJ67)-(AE67+AF67))*24<-720,\"Neinformat\",((AI67+AJ67)-(AE67+AF67))*24),\"Nu a fost afectat producator/consumator\")),\"\")","v":""},{"$f":"IF(B67=\"X\",IF(AN67=\"DA\",IF(AU67<6,LEN(TRIM(U67))-LEN(SUBSTITUTE(U67,CHAR(44),\"\"))+1,0),\"-\"),\"\")","v":""},{"$f":"IF(B67=\"X\",IF(AN67=\"DA\",LEN(TRIM(U67))-LEN(SUBSTITUTE(U67,CHAR(44),\"\"))+1,\"-\"),\"\")","v":""},{"$f":"IF(B67=\"X\",IF(AN67=\"\",\"Afectat sau NU?\",IF(AN67=\"DA\",((AG67+AH67)-(AE67+AF67))*24,\"Nu a fost afectat producator/consumator\")),\"\")","v":""},{"$f":"IF(B67=\"X\",IF(AN67=\"DA\",IF(AX67>24,IF(BA67=\"NU\",0,LEN(TRIM(V67))-LEN(SUBSTITUTE(V67,CHAR(44),\"\"))+1),0),\"-\"),\"\")","v":""},{"$f":"IF(B67=\"X\",IF(AN67=\"DA\",IF(AX67>24,LEN(TRIM(V67))-LEN(SUBSTITUTE(V67,CHAR(44),\"\"))+1,0),\"-\"),\"\")","v":""},null,null,null,null,null,{"$f":"IF(C67=\"X\",IF(AN67=\"\",\"Afectat sau NU?\",IF(AN67=\"DA\",IF(AK67=\"\",\"Neinformat\",NETWORKDAYS(AK67+AL67,AE67+AF67,$BS$2:$BS$14)-2),\"Nu a fost afectat producator/consumator\")),\"\")","v":"Afectat sau NU?"},{"$f":"IF(C67=\"X\",IF(AN67=\"DA\",IF(AND(BF67>=5,AK67<>\"\"),LEN(TRIM(V67))-LEN(SUBSTITUTE(V67,CHAR(44),\"\"))+1,0),\"-\"),\"\")","v":"-"},{"$f":"IF(C67=\"X\",IF(AN67=\"DA\",LEN(TRIM(V67))-LEN(SUBSTITUTE(V67,CHAR(44),\"\"))+1,\"-\"),\"\")","v":"-"},{"$f":"IF(C67=\"X\",IF(AN67=\"\",\"Afectat sau NU?\",IF(AN67=\"DA\",IF(AI67=\"\",\"Neinformat\",NETWORKDAYS(AI67+AJ67,AE67+AF67,$BS$2:$BS$14)-2),\"Nu a fost afectat producator/consumator\")),\"\")","v":"Afectat sau NU?"},{"$f":"IF(C67=\"X\",IF(AN67=\"DA\",IF(AND(BI67>=5,AI67<>\"\"),LEN(TRIM(U67))-LEN(SUBSTITUTE(U67,CHAR(44),\"\"))+1,0),\"-\"),\"\")","v":"-"},{"$f":"IF(C67=\"X\",IF(AN67=\"DA\",LEN(TRIM(U67))-LEN(SUBSTITUTE(U67,CHAR(44),\"\"))+1,\"-\"),\"\")","v":"-"},{"$f":"IF(C67=\"X\",IF(AN67=\"\",\"Afectat sau NU?\",IF(AN67=\"DA\",((AG67+AH67)-(Z67+AA67))*24,\"Nu a fost afectat producator/consumator\")),\"\")","v":"Afectat sau NU?"},{"$f":"IF(C67=\"X\",IF(AN67<>\"DA\",\"-\",IF(AND(AN67=\"DA\",BL67<=0),LEN(TRIM(V67))-LEN(SUBSTITUTE(V67,CHAR(44),\"\"))+1+LEN(TRIM(U67))-LEN(SUBSTITUTE(U67,CHAR(44),\"\"))+1,0)),\"\")","v":"-"},{"$f":"IF(C67=\"X\",IF(AN67=\"DA\",LEN(TRIM(V67))-LEN(SUBSTITUTE(V67,CHAR(44),\"\"))+1+LEN(TRIM(U67))-LEN(SUBSTITUTE(U67,CHAR(44),\"\"))+1,\"-\"),\"\")","v":"-"}]
[53,"-","x","Curățire interioara cu PIG a conductei 12” racord SRM Videle",151914,"Videle ","Teleorman",543275.88,310029.43,543275.88,310029.43,"-","-","SM1111D0","Videle ","-","-","-","-","SM-SD001",null,"Premier Energy","august - septembrie 2024",null,null,null,null,"București",null,null,null,null,null,null,null,null,null,null,null,null,null,"Forțe proprii",null,"","","","","","","","","",null,null,null,null,null,"Afectat sau NU?","-","-","Afectat sau NU?","-","-","Afectat sau NU?","-","-"]
[54,"-","x","Curățire interioara cu PIG a conductei 12” racord SRM Videle",104234,"Mârșa ","Giurgiu",543811.16,313253.82,543811.16,313253.82,"-","-","SM1165D0","Depozit 160 Videle","-","-","-","-","SM-CF001",null,"Petrom (livrare directă)","august - septembrie 2024",null,null,null,null,"București",null,null,null,null,null,null,null,null,null,null,null,null,null,"Forțe proprii",null,"","","","","","","","","",null,null,null,null,null,"Afectat sau NU?","-","-","Afectat sau NU?","-","-","Afectat sau NU?","-","-"]
[55,"-","x","Lucrări de mentenanță în SRM București Titan",403,"București","București",594982.35,325100.93,594982.35,325100.93,"-","-","SM0157D0","București Titan","-","-","-","-","SM-SD001",null,"Distrigaz Sud Rețele","mai - septembrie 2024",null,null,null,null,"București",null,null,null,null,null,null,null,null,null,null,null,null,null,"Forțe proprii",null,"","","","","","","","","",null,null,null,null,null,"Afectat sau NU?","-","-","Afectat sau NU?","-","-","Afectat sau NU?","-","-"]
[56,"-","x","Lucrări de mentenanță în SRM Măgurele București",179418,"Măgurele","Ilfov",583333.36,319855.82,583333.36,319855.82,"-","-","SM0252D0","Măgurele București","-","-","-","-","SM-SD001",null,"Distrigaz Sud Rețele","mai - septembrie 2024",null,null,null,null,"București",null,null,null,null,null,null,null,null,null,null,null,null,null,"Forțe proprii",null,"","","","","","","","","",null,null,null,null,null,"Afectat sau NU?","-","-","Afectat sau NU?","-","-","Afectat sau NU?","-","-"]
[57,"-","x","Lucrări de mentenanță și sistematizare panouri de măsură în SRM CET Vest București",403,"București","București",577613.28,325145.01,577613.28,325145.01,"-","-","SM0151D0","București Cet Vest","-","-","-","-","SM-SD001",null,"Distrigaz Sud Rețele","mai - septembrie 2024",null,null,null,null,"București",null,null,null,null,null,null,null,null,null,null,null,null,null,"Forțe proprii",null,"","","","","","","","","",null,null,null,null,null,"Afectat sau NU?","-","-","Afectat sau NU?","-","-","Afectat sau NU?","-","-"]
[58,"-","x","Lucrari de mentenanță si sistematizare panouri de masura în cadrul SRM 16 Februarie București",403,"București","București",580043.31999999995,331375.90000000002,580043.31999999995,331375.90000000002,"-","-","SM0144D0","București 16 Februarie","-","-","-","-","SM-SD001",null,"Distrigaz Sud Rețele","mai - septembrie 2024",null,null,null,null,"București",null,null,null,null,null,null,null,null,null,null,null,null,null,"Forțe proprii",null,"","","","","","","","","",null,null,null,null,null,"Afectat sau NU?","-","-","Afectat sau NU?","-","-","Afectat sau NU?","-","-"]